{"text_format":"1","workbook":"xlsx","n_sheets":4,"sheets":["Explication","Feuille perso","Carrière-Compétence","Équipement-Titre"],"not_rendered":{"charts":0,"images":0,"macros":1,"external_links":0,"defined_names":17,"comments":0,"pivot_tables":0},"unopened":[],"bounds":{"document_bytes":16777216,"sheet_cells":100000,"rows_first":2000,"rows_last":500,"rows_between":2000,"halvings":0,"cell_chars":16384,"cell_head_chars":4096},"cells_cut":0,"cells_raw":0,"read":"whole","date_system":"1900"}

{"sheet":"Explication","index":0,"n_rows":23,"n_cols":2,"rows_kept":23,"cut":false,"hidden":false,"merged":[]}
[null,"Tout ce qui est en blanc ne peut pas être modifié"]
[]
[null,"Feuille Perso"]
[null,"= Ce que vous avez sur votre feuille"]
[null,"= Qualité de votre équipement"]
[null,"= Inscrivez \"oui\" pour dire que c'est celui que vous avez équipé"]
[null,"= Tout bonus qui modifie le chiffre de base"]
[null,"= Tout bonus qui modifie le chiffre de base en %. Exemple si bonus de 5% inscrire 105%"]
[null,"= Juste le chiffre sans le %. Exemple si +25% critique juste inscrire 25"]
[null,"= Inscriver le bonus de protection innée ou de qualité d'équipement et en bas de la colonne faite le total"]
[]
[null,"Carrière-Compétence"]
[null,"= Inscrire le nombre de point mis dans cette carrière"]
[null,"= Inscrire le terme donné par le Maître de jeu"]
[null,"= Compétence affecté par l'encombrement d'armure"]
[null,"= Point de compétence dépensé par vous"]
[null,"= Point de compétence bonus donné par une carrière"]
[null,"= Point de compétence bonus donné par une carrière pour toute la catégorie"]
[null,"La colonne total vous donne le résultat de tout le calcul incluant votre armure"]
[]
[null,"Si la différence entre ce que la feuille calcul  et ce que vous avez placé diffère vous allez voir la différence, manque ou trop, dans ces cases"]
[]
["Ctrl+r","Remettre vierge la feuille de personnage"]

{"sheet":"Feuille perso","index":1,"n_rows":52,"n_cols":24,"rows_kept":52,"cut":false,"hidden":false,"merged":[[37,16,37,18],[36,5,36,6],[35,10,35,11],[36,10,36,11],[35,7,35,9],[36,7,36,9],[35,5,35,6],[6,0,6,1],[17,2,17,3],[18,2,18,3],[21,2,21,3],[22,2,22,3],[11,2,11,3],[12,2,12,3],[13,2,13,3],[14,2,14,3],[15,2,15,3],[16,2,16,3],[10,0,10,1],[11,0,11,1],[12,0,12,1],[13,0,13,1],[7,0,7,1],[0,0,0,1],[1,0,1,1],[2,0,2,1],[4,0,4,1],[5,0,5,1],[8,0,8,1],[14,0,14,1],[15,0,15,1],[16,0,16,1],[17,0,17,1],[18,0,18,1],[40,0,40,1],[41,0,41,1],[42,0,42,1],[34,0,34,1],[35,0,35,1],[36,0,36,1],[37,0,37,1],[38,0,38,1],[39,0,39,1],[26,0,26,3],[32,2,32,3],[31,2,31,3],[28,2,28,3],[29,2,29,3],[30,2,30,3],[25,2,25,3],[23,2,23,3],[24,2,24,3],[0,4,0,5],[1,4,1,5],[2,4,2,5],[10,2,10,3],[20,2,20,3],[4,2,4,5],[5,2,5,5],[6,2,6,5],[7,2,7,5],[8,2,8,5],[51,0,51,2],[43,0,43,1],[44,0,44,1],[45,0,45,1],[46,0,46,1],[47,0,47,1],[48,0,48,1],[49,0,49,1],[50,0,50,1],[1,13,1,14],[2,13,2,14],[3,13,3,14],[4,13,4,14],[5,13,5,14]]}
["Expérience",null,null,null,"Physique",null,{"$f":"IF($C$7<>0,VLOOKUP($C$7,Carrière_complète,15,FALSE),0)","v":0},null,null,null,null,null,null,"Bonus %",null,"Bonus +"]
["Âge",null,null,null,"Mental",null,{"$f":"IF($C$7<>0,VLOOKUP($C$7,Carrière_complète,16,FALSE),0)","v":0},null,null,"Points de vie",null,null,{"$f":"ROUND((((C1+10)*G1)/10)*N2+P2+5,0)","v":5},1]
["Essence",null,null,null,"Réaction",null,{"$f":"IF($C$7<>0,VLOOKUP($C$7,Carrière_complète,17,FALSE),0)","v":0},null,null,"Points de magie",null,null,{"$f":"IF(G2=0,0,ROUND(G2*VLOOKUP(\"Oui\",A22:N26,14,FALSE)*N3+P3+IF(G2>=6,R3,0),0))","v":0},1,null,null,"M>=6"]
[null,null,null,null,null,null,null,null,null,"Force magique Arcane",null,null,{"$f":"ROUND((C1*G2/40)*N4+1+P4,0)","v":1},1]
["Maison",null,null,null,null,null,"Rang",null,null,"Force magique Divine",null,null,{"$f":"ROUND((C1*G2/40)*N5+1+P5,0)","v":1},1]
["Titre",null,null,null,null,null,"Salaire",{"$f":"IF($C$6=0,0,VLOOKUP($C$6,Titre_Complet,2,FALSE))","v":0},null,"Force magique Maudit",null,null,{"$f":"ROUND((C1*G2/40)*N6+1+P6,0)","v":1},1]
["Carrière",null,null,null,null,null,"Or",null,null,"Champ d'action",null,null,{"$f":"IF(AND(A30=0,A31=0,A32=0,A33=0),6,6+N7+VLOOKUP(\"Oui\",A30:I33,6,FALSE))","v":6}]
["Dogme",null,null,null,null,null,null,null,null,"Vitesse de tour",null,null,{"$f":"14-G3","v":14}]
["Naissance",null,null,null,null,null,null,null,null,"Mouvement",null,null,{"$f":"IF(AND(A22=0,A23=0,A24=0,A25=0,A26=0),6+N9,6-VLOOKUP(\"Oui\",A22:N26,10,FALSE)+N9+VLOOKUP(\"Oui\",A22:N26,11,FALSE))","v":6}]
[]
["Arme",null,"Qualité",null,"Type","Port.","Bonus","Att.","Bonus","Bonus %","Dégâts","Dés","Crit.","Bon.","Mal.","Bon.","Face","Bon.","Flanc","Bon.","Dos","Bon."]
["Aucune",null,null,null,{"$f":"IF(A12=0,0,VLOOKUP(A12,Arme_Complète,9,FALSE))","v":"M / C"},{"$f":"IF(A12=0,0,IF(C12<>0,VLOOKUP(A12,Arme_Complète,2,FALSE)+VLOOKUP(C12,Qualité_Complète,4,FALSE)+G12,VLOOKUP(A12,Arme_Complète,2,FALSE)+G12))","v":1},null,{"$f":"IF(A12=0,0,IF($C12<>0,VLOOKUP($A12,Arme_Complète,3,FALSE)*VLOOKUP($C12,Qualité_Complète,3,FALSE),VLOOKUP($A12,Arme_Complète,3,FALSE)))","v":0},null,1,{"$f":"ROUND(((($C$1+H12+I12)*(20+H12+I12)*$G$1)/1000)*J12+1,0)","v":1},{"$f":"VLOOKUP(K12,Dégat,3,TRUE)","v":1},{"$f":"IF(A12=0,0,IF(C12<>0,VLOOKUP(A12,Arme_Complète,4,FALSE)+VLOOKUP(C12,Qualité_Complète,5,FALSE)+N12,VLOOKUP(A12,Arme_Complète,4,FALSE)+N12))","v":150},null,{"$f":"IF(A12=0,0,VLOOKUP(A12,Arme_Complète,5,FALSE)-$G$2-P12)","v":9},null,{"$f":"IF(A12=0,0,IF(C12<>0,VLOOKUP(A12,Arme_Complète,6,FALSE)-VLOOKUP(C12,Qualité_Complète,6,FALSE)-R12,VLOOKUP(A12,Arme_Complète,6,FALSE)-R12))","v":8},null,{"$f":"IF(A12=0,0,IF(C12<>0,VLOOKUP(A12,Arme_Complète,7,FALSE)-VLOOKUP(C12,Qualité_Complète,7,FALSE)-T12,VLOOKUP(A12,Arme_Complète,7,FALSE)-T12))","v":7},null,{"$f":"IF(A12=0,0,IF(C12<>0,VLOOKUP(A12,Arme_Complète,8,FALSE)-VLOOKUP(C12,Qualité_Complète,8,FALSE)-V12,VLOOKUP(A12,Arme_Complète,8,FALSE)-V12))","v":6}]
[null,null,null,null,0,0,null,0,null,1,1,1,0,null,0,null,0,null,0,null,0]
[null,null,null,null,0,0,null,0,null,1,1,1,0,null,0,null,0,null,0,null,0]
[null,null,null,null,0,0,null,0,null,1,1,1,0,null,0,null,0,null,0,null,0]
[null,null,null,null,0,0,null,0,null,1,1,1,0,null,0,null,0,null,0,null,0]
[null,null,null,null,0,0,null,0,null,1,1,1,0,null,0,null,0,null,0,null,0]
[null,null,null,null,0,0,null,0,null,1,1,1,0,null,0,null,0,null,0,null,0]
[null,null,null,null,0,0,null,0,null,1,1,1,0,null,0,null,0,null,0,null,0]
[]
["Éq. ?","Armures","Qualité",null,"Perç.","Tran.","Cont.","Feu","Sort.","Enc. Mouv","Bonus","Enc. Comp.","Bonus","Magie"]
["oui","Aucune","Bonus Inné",null,null,null,null,null,null,null,null,null,null,1.5]
[null,null,null,null,{"$f":"IF(B23=0,0,VLOOKUP(B23,Armure_Complète,2,FALSE))","v":0},{"$f":"IF(B23=0,0,VLOOKUP(B23,Armure_Complète,3,FALSE))","v":0},{"$f":"IF(B23=0,0,VLOOKUP(B23,Armure_Complète,4,FALSE))","v":0},{"$f":"IF(B23=0,0,VLOOKUP(B23,Armure_Complète,5,FALSE))","v":0},{"$f":"IF(B23=0,0,VLOOKUP(B23,Armure_Complète,6,FALSE))","v":0},{"$f":"IF(B23=0,0,IF(C23<>0,VLOOKUP(B23,Armure_Complète,7,FALSE)+VLOOKUP(C23,Qualité_Complète,11,FALSE),VLOOKUP(B23,Armure_Complète,7,FALSE)))","v":0},null,{"$f":"IF(B23=0,0,IF(C23<>0,VLOOKUP(B23,Armure_Complète,8,FALSE)+VLOOKUP(C23,Qualité_Complète,12,FALSE),VLOOKUP(B23,Armure_Complète,8,FALSE)))","v":0},null,{"$f":"IF(B23=0,0,IF(C23<>0,VLOOKUP(B23,Armure_Complète,9,FALSE)+VLOOKUP(C23,Qualité_Complète,13,FALSE),VLOOKUP(B23,Armure_Complète,9,FALSE)))","v":0}]
[null,null,null,null,{"$f":"IF(B24=0,0,VLOOKUP(B24,Armure_Complète,2,FALSE))","v":0},{"$f":"IF(B24=0,0,VLOOKUP(B24,Armure_Complète,3,FALSE))","v":0},{"$f":"IF(B24=0,0,VLOOKUP(B24,Armure_Complète,4,FALSE))","v":0},{"$f":"IF(B24=0,0,VLOOKUP(B24,Armure_Complète,5,FALSE))","v":0},{"$f":"IF(B24=0,0,VLOOKUP(B24,Armure_Complète,6,FALSE))","v":0},{"$f":"IF(B24=0,0,IF(C24<>0,VLOOKUP(B24,Armure_Complète,7,FALSE)+VLOOKUP(C24,Qualité_Complète,11,FALSE),VLOOKUP(B24,Armure_Complète,7,FALSE)))","v":0},null,{"$f":"IF(B24=0,0,IF(C24<>0,VLOOKUP(B24,Armure_Complète,8,FALSE)+VLOOKUP(C24,Qualité_Complète,12,FALSE),VLOOKUP(B24,Armure_Complète,8,FALSE)))","v":0},null,{"$f":"IF(B24=0,0,IF(C24<>0,VLOOKUP(B24,Armure_Complète,9,FALSE)+VLOOKUP(C24,Qualité_Complète,13,FALSE),VLOOKUP(B24,Armure_Complète,9,FALSE)))","v":0}]
[null,null,null,null,{"$f":"IF(B25=0,0,VLOOKUP(B25,Armure_Complète,2,FALSE))","v":0},{"$f":"IF(B25=0,0,VLOOKUP(B25,Armure_Complète,3,FALSE))","v":0},{"$f":"IF(B25=0,0,VLOOKUP(B25,Armure_Complète,4,FALSE))","v":0},{"$f":"IF(B25=0,0,VLOOKUP(B25,Armure_Complète,5,FALSE))","v":0},{"$f":"IF(B25=0,0,VLOOKUP(B25,Armure_Complète,6,FALSE))","v":0},{"$f":"IF(B25=0,0,IF(C25<>0,VLOOKUP(B25,Armure_Complète,7,FALSE)+VLOOKUP(C25,Qualité_Complète,11,FALSE),VLOOKUP(B25,Armure_Complète,7,FALSE)))","v":0},null,{"$f":"IF(B25=0,0,IF(C25<>0,VLOOKUP(B25,Armure_Complète,8,FALSE)+VLOOKUP(C25,Qualité_Complète,12,FALSE),VLOOKUP(B25,Armure_Complète,8,FALSE)))","v":0},null,{"$f":"IF(B25=0,0,IF(C25<>0,VLOOKUP(B25,Armure_Complète,9,FALSE)+VLOOKUP(C25,Qualité_Complète,13,FALSE),VLOOKUP(B25,Armure_Complète,9,FALSE)))","v":0}]
[null,null,null,null,{"$f":"IF(B26=0,0,VLOOKUP(B26,Armure_Complète,2,FALSE))","v":0},{"$f":"IF(B26=0,0,VLOOKUP(B26,Armure_Complète,3,FALSE))","v":0},{"$f":"IF(B26=0,0,VLOOKUP(B26,Armure_Complète,4,FALSE))","v":0},{"$f":"IF(B26=0,0,VLOOKUP(B26,Armure_Complète,5,FALSE))","v":0},{"$f":"IF(B26=0,0,VLOOKUP(B26,Armure_Complète,6,FALSE))","v":0},{"$f":"IF(B26=0,0,IF(C26<>0,VLOOKUP(B26,Armure_Complète,7,FALSE)+VLOOKUP(C26,Qualité_Complète,11,FALSE),VLOOKUP(B26,Armure_Complète,7,FALSE)))","v":0},null,{"$f":"IF(B26=0,0,IF(C26<>0,VLOOKUP(B26,Armure_Complète,8,FALSE)+VLOOKUP(C26,Qualité_Complète,12,FALSE),VLOOKUP(B26,Armure_Complète,8,FALSE)))","v":0},null,{"$f":"IF(B26=0,0,IF(C26<>0,VLOOKUP(B26,Armure_Complète,9,FALSE)+VLOOKUP(C26,Qualité_Complète,13,FALSE),VLOOKUP(B26,Armure_Complète,9,FALSE)))","v":0}]
["Protection totale avec qualité et inné"]
[]
["Éq. ?","Bouclier","Qualité",null,"Phys.","Ch. act.","Face","Flanc","Dos"]
["oui","Aucun",null,null,{"$f":"IF(B30=0,0,IF(C30<>0,VLOOKUP(B30,Bouclier_Complet,2,FALSE)+VLOOKUP(C30,Qualité_Complète,9,FALSE),VLOOKUP(B30,Bouclier_Complet,2,FALSE)))","v":0},{"$f":"IF(B30=0,0,IF(C30<>0,VLOOKUP(B30,Bouclier_Complet,3,FALSE)-VLOOKUP(C30,Qualité_Complète,10,FALSE),VLOOKUP(B30,Bouclier_Complet,3,FALSE)))","v":0},{"$f":"IF(B30=0,0,VLOOKUP(B30,Bouclier_Complet,4,FALSE))","v":0},{"$f":"IF(B30=0,0,VLOOKUP(B30,Bouclier_Complet,5,FALSE))","v":0},{"$f":"IF(B30=0,0,VLOOKUP(B30,Bouclier_Complet,6,FALSE))","v":0}]
[null,null,null,null,{"$f":"IF(B31=0,0,IF(C31<>0,VLOOKUP(B31,Bouclier_Complet,2,FALSE)+VLOOKUP(C31,Qualité_Complète,9,FALSE),VLOOKUP(B31,Bouclier_Complet,2,FALSE)))","v":0},{"$f":"IF(B31=0,0,IF(C31<>0,VLOOKUP(B31,Bouclier_Complet,3,FALSE)-VLOOKUP(C31,Qualité_Complète,10,FALSE),VLOOKUP(B31,Bouclier_Complet,3,FALSE)))","v":0},{"$f":"IF(B31=0,0,VLOOKUP(B31,Bouclier_Complet,4,FALSE))","v":0},{"$f":"IF(B31=0,0,VLOOKUP(B31,Bouclier_Complet,5,FALSE))","v":0},{"$f":"IF(B31=0,0,VLOOKUP(B31,Bouclier_Complet,6,FALSE))","v":0}]
[null,null,null,null,{"$f":"IF(B32=0,0,IF(C32<>0,VLOOKUP(B32,Bouclier_Complet,2,FALSE)+VLOOKUP(C32,Qualité_Complète,9,FALSE),VLOOKUP(B32,Bouclier_Complet,2,FALSE)))","v":0},{"$f":"IF(B32=0,0,IF(C32<>0,VLOOKUP(B32,Bouclier_Complet,3,FALSE)-VLOOKUP(C32,Qualité_Complète,10,FALSE),VLOOKUP(B32,Bouclier_Complet,3,FALSE)))","v":0},{"$f":"IF(B32=0,0,VLOOKUP(B32,Bouclier_Complet,4,FALSE))","v":0},{"$f":"IF(B32=0,0,VLOOKUP(B32,Bouclier_Complet,5,FALSE))","v":0},{"$f":"IF(B32=0,0,VLOOKUP(B32,Bouclier_Complet,6,FALSE))","v":0}]
[null,null,null,null,{"$f":"IF(B33=0,0,IF(C33<>0,VLOOKUP(B33,Bouclier_Complet,2,FALSE)+VLOOKUP(C33,Qualité_Complète,9,FALSE),VLOOKUP(B33,Bouclier_Complet,2,FALSE)))","v":0},{"$f":"IF(B33=0,0,IF(C33<>0,VLOOKUP(B33,Bouclier_Complet,3,FALSE)-VLOOKUP(C33,Qualité_Complète,10,FALSE),VLOOKUP(B33,Bouclier_Complet,3,FALSE)))","v":0},{"$f":"IF(B33=0,0,VLOOKUP(B33,Bouclier_Complet,4,FALSE))","v":0},{"$f":"IF(B33=0,0,VLOOKUP(B33,Bouclier_Complet,5,FALSE))","v":0},{"$f":"IF(B33=0,0,VLOOKUP(B33,Bouclier_Complet,6,FALSE))","v":0}]
[]
["Influence",null,"Points","Total"]
["Aravas",null,null,{"$f":"C36*2","v":0},null,"Monture",null,"Armure",null,null,"Qualité",null,"PV","Bonus","P","M","R","Mouv","Bonus","Perç.","Tran.","Cont.","Feu","Sort."]
["Arcadis",null,null,{"$f":"C37*4","v":0},null,null,null,null,null,null,null,null,{"$f":"IF($F$37=0,0,VLOOKUP($F$37,Monture_Complet,2,FALSE)*N37)","v":0},1,{"$f":"IF($F$37=0,0,VLOOKUP($F$37,Monture_Complet,3,FALSE))","v":0},{"$f":"IF($F$37=0,0,VLOOKUP($F$37,Monture_Complet,4,FALSE))","v":0},{"$f":"IF($F$37=0,0,VLOOKUP($F$37,Monture_Complet,5,FALSE))","v":0},{"$f":"IF($F$37=0,0,VLOOKUP($F$37,Monture_Complet,6,FALSE)+S37)","v":0},null,{"$f":"IF($H$37=0,0,VLOOKUP($H$37,Carapaçons_Bardes_Complet,2,FALSE))","v":0},{"$f":"IF($H$37=0,0,VLOOKUP($H$37,Carapaçons_Bardes_Complet,3,FALSE))","v":0},{"$f":"IF($H$37=0,0,VLOOKUP($H$37,Carapaçons_Bardes_Complet,4,FALSE))","v":0},{"$f":"IF($H$37=0,0,VLOOKUP($H$37,Carapaçons_Bardes_Complet,5,FALSE))","v":0},{"$f":"IF($H$37=0,0,VLOOKUP($H$37,Carapaçons_Bardes_Complet,6,FALSE))","v":0}]
["Balgarde",null,null,{"$f":"C38*2","v":0},null,null,null,null,null,null,null,null,null,null,null,null,"Total"]
["Berrouve",null,null,{"$f":"C39*7","v":0}]
["Cercle des loups",null,null,{"$f":"C40*3","v":0}]
["Clergé",null,null,{"$f":"C41*6","v":0}]
["Confrérie",null,null,{"$f":"C42*4","v":0}]
["Duloir",null,null,{"$f":"C43*4","v":0}]
["Guilde de l'ombre",null,null,{"$f":"C44*2","v":0}]
["Harlog",null,null,{"$f":"C45*1","v":0}]
["Komeidai",null,null,{"$f":"C46*5","v":0}]
["Savie",null,null,{"$f":"C47*2","v":0}]
["Tiar",null,null,{"$f":"C48*1","v":0}]
["Valmont",null,null,{"$f":"C49*7","v":0}]
[]
[]
["Total",null,null,{"$f":"SUM(D36:D51)","v":0}]

{"sheet":"Carrière-Compétence","index":2,"n_rows":139,"n_cols":49,"rows_kept":139,"cut":false,"hidden":false,"merged":[]}
["Page","Nom","# de pex","Password",null,null,"Bonus Catégorie",null,null,null,null,"Bonus Catégorie",null,null,null,null,"Bonus Catégorie",null,null,null,null,"Bonus Catégorie",null,null,null,null,"Bonus Catégorie",null,null,null,null,null,"Nom","Manuelle","Habileté","Sens","Sociale","Connaissance","Choix",null,"Manuelle","Habileté","Sens","Sociale","Connaissance","Choix","P","M","R"]
[null,null,null,null,"Âge",{"$f":"'Feuille perso'!C2","v":0},"Manuelle","Point","Bonus","Malus","Total","Habileté","Point","Bonus","Malus","Total","Sens","Point","Bonus","Malus","Total","Sociale","Point","Bonus","Malus","Total","Connaissance","Point","Bonus","Malus","Total"]
[1,"Barbare",null,null,null,null,"Alcool",null,null,null,{"$f":"H3+I3+J3+$I$1","v":0},"Acrobatie",null,null,{"$f":"IF(AND('Feuille perso'!$B$22=0,'Feuille perso'!$B$23=0,'Feuille perso'!$B$24=0,'Feuille perso'!$B$25=0,'Feuille perso'!$B$26=0),0,VLOOKUP(\"Oui\",'Feuille perso'!$A$22:$N$26,12,FALSE)+VLOOKUP(\"Oui\",'Feuille perso'!$A$22:$N$26,13,FALSE))","v":0},{"$f":"M3+N3+O3+$N$1","v":0},"Analyse",null,null,null,{"$f":"R3+S3+T3+$S$1","v":0},"Baratin",null,null,null,{"$f":"W3+X3+Y3+$X$1","v":0},"Ancien culte",null,null,null,{"$f":"AB3+AC3+AD3+$AC$1","v":0},null,"Barbare",1,1,null,null,null,1,null,{"$f":"AH3*C3","v":0},{"$f":"AI3*C3","v":0},{"$f":"AJ3*C3","v":0},{"$f":"AK3*C3","v":0},{"$f":"AL3*C3","v":0},{"$f":"AM3*C3","v":0},7,2,6]
[2,{"$f":"IF(AND(C3>5,D4=\"Combattant\"),AG4,0)","v":0},null,null,null,null,"Artisanat",null,null,null,{"$f":"H4+I4+J4+$I$1","v":0},"Camouflage nature",null,null,{"$f":"IF(AND('Feuille perso'!$B$22=0,'Feuille perso'!$B$23=0,'Feuille perso'!$B$24=0,'Feuille perso'!$B$25=0,'Feuille perso'!$B$26=0),0,VLOOKUP(\"Oui\",'Feuille perso'!$A$22:$N$26,12,FALSE)+VLOOKUP(\"Oui\",'Feuille perso'!$A$22:$N$26,13,FALSE))","v":0},{"$f":"M4+N4+O4+$N$1","v":0},"Concentration",null,null,{"$f":"IF(AND('Feuille perso'!$B$22=0,'Feuille perso'!$B$23=0,'Feuille perso'!$B$24=0,'Feuille perso'!$B$25=0,'Feuille perso'!$B$26=0),0,VLOOKUP(\"Oui\",'Feuille perso'!$A$22:$N$26,12,FALSE)+VLOOKUP(\"Oui\",'Feuille perso'!$A$22:$N$26,13,FALSE))","v":0},{"$f":"R4+S4+T4+$S$1","v":0},"Corruption",null,null,null,{"$f":"W4+X4+Y4+$X$1","v":0},"Astronomie",null,null,null,{"$f":"AB4+AC4+AD4+$AC$1","v":0},null,"Combattant",1,1,null,null,null,1,null,{"$f":"IF(B4<>0,AH4*C4,0)","v":0},{"$f":"IF(B4<>0,AI4*C4,0)","v":0},{"$f":"IF(B4<>0,AJ4*C4,0)","v":0},{"$f":"IF(B4<>0,AK4*C4,0)","v":0},{"$f":"IF(B4<>0,AL4*C4,0)","v":0},{"$f":"IF(B4<>0,AM4*C4,0)","v":0},8,2,6]
[3,{"$f":"IF(AND(C4>5,D5=\"Gladiateur\",B4<>0),AG5,0)","v":0},null,null,"Manuel",{"$f":"AO139","v":0},"Chapenterie",null,null,null,0,"Camouflage urbain",null,null,{"$f":"IF(AND('Feuille perso'!$B$22=0,'Feuille perso'!$B$23=0,'Feuille perso'!$B$24=0,'Feuille perso'!$B$25=0,'Feuille perso'!$B$26=0),0,VLOOKUP(\"Oui\",'Feuille perso'!$A$22:$N$26,12,FALSE)+VLOOKUP(\"Oui\",'Feuille perso'!$A$22:$N$26,13,FALSE))","v":0},0,"Cuisine",null,null,null,0,"Éloquence",null,null,null,0,"Bibliothèques",null,null,null,0,null,"Gladiateur",1,1,null,null,null,1,null,{"$f":"IF(B5<>0,AH5*C5,0)","v":0},{"$f":"IF(B5<>0,AI5*C5,0)","v":0},{"$f":"IF(B5<>0,AJ5*C5,0)","v":0},{"$f":"IF(B5<>0,AK5*C5,0)","v":0},{"$f":"IF(B5<>0,AL5*C5,0)","v":0},{"$f":"IF(B5<>0,AM5*C5,0)","v":0},8,3,6]
[4,"Milicien",null,null,"Habileté",{"$f":"AP139","v":0},"Chasse et pêche",null,null,{"$f":"IF(AND('Feuille perso'!$B$22=0,'Feuille perso'!$B$23=0,'Feuille perso'!$B$24=0,'Feuille perso'!$B$25=0,'Feuille perso'!$B$26=0),0,VLOOKUP(\"Oui\",'Feuille perso'!$A$22:$N$26,12,FALSE)+VLOOKUP(\"Oui\",'Feuille perso'!$A$22:$N$26,13,FALSE))","v":0},0,"Crochetage",null,null,null,0,"Détection",null,null,null,0,"Empathie",null,null,null,0,"Créatures",null,null,null,0,null,"Milicien",1,null,null,1,null,1,null,{"$f":"AH6*C6","v":0},{"$f":"AI6*C6","v":0},{"$f":"AJ6*C6","v":0},{"$f":"AK6*C6","v":0},{"$f":"AL6*C6","v":0},{"$f":"AM6*C6","v":0},7,3,5]
[5,{"$f":"IF(AND(C6>5,D7=\"Croisé\"),AG7,0)","v":0},null,null,"Sens",{"$f":"AQ139","v":0},"Conduite",null,null,null,0,"Déguisements",null,null,null,0,"Dressage",null,null,null,0,"Faux papiers",null,null,null,0,"Géographie",null,null,null,0,null,"Croisé",1,null,null,1,null,1,null,{"$f":"IF(B7<>0,AH7*C7,0)","v":0},{"$f":"IF(B7<>0,AI7*C7,0)","v":0},{"$f":"IF(B7<>0,AJ7*C7,0)","v":0},{"$f":"IF(B7<>0,AK7*C7,0)","v":0},{"$f":"IF(B7<>0,AL7*C7,0)","v":0},{"$f":"IF(B7<>0,AM7*C7,0)","v":0},7,4,5]
[6,{"$f":"IF(AND(C7>5,D8=\"Templier\",B7<>0),AG8,0)","v":0},null,null,"Social",{"$f":"AR139","v":0},"Cordes",null,null,null,0,"Démolition",null,null,null,0,"Écoute",null,null,null,0,"Hypnotisme",null,null,null,0,"Histoire",null,null,null,0,null,"Templier",1,null,null,1,null,1,null,{"$f":"IF(B8<>0,AH8*C8,0)","v":0},{"$f":"IF(B8<>0,AI8*C8,0)","v":0},{"$f":"IF(B8<>0,AJ8*C8,0)","v":0},{"$f":"IF(B8<>0,AK8*C8,0)","v":0},{"$f":"IF(B8<>0,AL8*C8,0)","v":0},{"$f":"IF(B8<>0,AM8*C8,0)","v":0},8,4,5]
[7,"Écuyer",null,null,"Connaissance",{"$f":"AS139","v":0},"Course",null,null,{"$f":"IF(AND('Feuille perso'!$B$22=0,'Feuille perso'!$B$23=0,'Feuille perso'!$B$24=0,'Feuille perso'!$B$25=0,'Feuille perso'!$B$26=0),0,VLOOKUP(\"Oui\",'Feuille perso'!$A$22:$N$26,12,FALSE)+VLOOKUP(\"Oui\",'Feuille perso'!$A$22:$N$26,13,FALSE))","v":0},0,"Discrétion nature",null,null,{"$f":"IF(AND('Feuille perso'!$B$22=0,'Feuille perso'!$B$23=0,'Feuille perso'!$B$24=0,'Feuille perso'!$B$25=0,'Feuille perso'!$B$26=0),0,VLOOKUP(\"Oui\",'Feuille perso'!$A$22:$N$26,12,FALSE)+VLOOKUP(\"Oui\",'Feuille perso'!$A$22:$N$26,13,FALSE))","v":0},0,"Évaluation",null,null,null,0,"Intimidation",null,null,null,0,"Identification",null,null,null,0,null,"Écuyer",1,null,1,null,1,1,null,{"$f":"AH9*C9","v":0},{"$f":"AI9*C9","v":0},{"$f":"AJ9*C9","v":0},{"$f":"AK9*C9","v":0},{"$f":"AL9*C9","v":0},{"$f":"AM9*C9","v":0},7,4,4]
[8,{"$f":"IF(AND(C9>5,D10=\"Cavalier\"),AG10,0)","v":0},null,null,"Choix",{"$f":"IF(F2<50,F2,50)+AT139","v":0},"Équilibre",null,null,{"$f":"IF(AND('Feuille perso'!$B$22=0,'Feuille perso'!$B$23=0,'Feuille perso'!$B$24=0,'Feuille perso'!$B$25=0,'Feuille perso'!$B$26=0),0,VLOOKUP(\"Oui\",'Feuille perso'!$A$22:$N$26,12,FALSE)+VLOOKUP(\"Oui\",'Feuille perso'!$A$22:$N$26,13,FALSE))","v":0},0,"Discrétion urbaine",null,null,{"$f":"IF(AND('Feuille perso'!$B$22=0,'Feuille perso'!$B$23=0,'Feuille perso'!$B$24=0,'Feuille perso'!$B$25=0,'Feuille perso'!$B$26=0),0,VLOOKUP(\"Oui\",'Feuille perso'!$A$22:$N$26,12,FALSE)+VLOOKUP(\"Oui\",'Feuille perso'!$A$22:$N$26,13,FALSE))","v":0},0,"Lecture labiale",null,null,null,0,"Jargon secret",null,null,null,0,"Maisons",null,null,null,0,null,"Cavalier",1,null,1,null,1,1,null,{"$f":"IF(B10<>0,AH10*C10,0)","v":0},{"$f":"IF(B10<>0,AI10*C10,0)","v":0},{"$f":"IF(B10<>0,AJ10*C10,0)","v":0},{"$f":"IF(B10<>0,AK10*C10,0)","v":0},{"$f":"IF(B10<>0,AL10*C10,0)","v":0},{"$f":"IF(B10<>0,AM10*C10,0)","v":0},7,5,4]
[9,{"$f":"IF(AND(C10>5,D11=\"Chevalier\",B10<>0),AG11,0)","v":0},null,null,null,null,"Équitation",null,null,null,0,"Dissimulation",null,null,null,0,"Météorologie",null,null,null,0,"Jeu",null,null,null,0,"Nature",null,null,null,0,null,"Chevalier",1,null,1,null,1,1,null,{"$f":"IF(B11<>0,AH11*C11,0)","v":0},{"$f":"IF(B11<>0,AI11*C11,0)","v":0},{"$f":"IF(B11<>0,AJ11*C11,0)","v":0},{"$f":"IF(B11<>0,AK11*C11,0)","v":0},{"$f":"IF(B11<>0,AL11*C11,0)","v":0},{"$f":"IF(B11<>0,AM11*C11,0)","v":0},8,5,4]
[10,"Mercenaire",null,null,"Total reçu",{"$f":"SUM(F5:F10)+F21","v":0},"Escalade",null,null,{"$f":"IF(AND('Feuille perso'!$B$22=0,'Feuille perso'!$B$23=0,'Feuille perso'!$B$24=0,'Feuille perso'!$B$25=0,'Feuille perso'!$B$26=0),0,VLOOKUP(\"Oui\",'Feuille perso'!$A$22:$N$26,12,FALSE)+VLOOKUP(\"Oui\",'Feuille perso'!$A$22:$N$26,13,FALSE))","v":0},0,"Médecine",null,null,null,0,"Observation",null,null,null,0,"Leadership",null,null,null,0,"Occultisme",null,null,null,0,null,"Mercenaire",null,1,1,null,null,1,null,{"$f":"AH12*C12","v":0},{"$f":"AI12*C12","v":0},{"$f":"AJ12*C12","v":0},{"$f":"AK12*C12","v":0},{"$f":"AL12*C12","v":0},{"$f":"AM12*C12","v":0},6,3,6]
[11,{"$f":"IF(AND(C12>5,D13=\"Spadassin\"),AG13,0)","v":0},null,null,"Total dépensé",{"$f":"SUM(H21:AB21)","v":0},"Lutte",null,null,{"$f":"IF(AND('Feuille perso'!$B$22=0,'Feuille perso'!$B$23=0,'Feuille perso'!$B$24=0,'Feuille perso'!$B$25=0,'Feuille perso'!$B$26=0),0,VLOOKUP(\"Oui\",'Feuille perso'!$A$22:$N$26,12,FALSE)+VLOOKUP(\"Oui\",'Feuille perso'!$A$22:$N$26,13,FALSE))","v":0},0,"Pièges",null,null,null,0,"Odorat",null,null,null,0,"Marchandage",null,null,null,0,"Politique",null,null,null,0,null,"Spadassin",null,1,1,null,null,1,null,{"$f":"IF(B13<>0,AH13*C13,0)","v":0},{"$f":"IF(B13<>0,AI13*C13,0)","v":0},{"$f":"IF(B13<>0,AJ13*C13,0)","v":0},{"$f":"IF(B13<>0,AK13*C13,0)","v":0},{"$f":"IF(B13<>0,AL13*C13,0)","v":0},{"$f":"IF(B13<>0,AM13*C13,0)","v":0},7,3,6]
[12,{"$f":"IF(AND(C13>5,D14=\"Duelliste\",B13<>0),AG14,0)","v":0},null,null,"Reste",{"$f":"IF(F12-F13<0,0,F12-F13)","v":0},"Métallurgie",null,null,null,0,"Précision",null,null,null,0,"Orientation",null,null,null,0,"Performance",null,null,null,0,"Rituel du Trépas",null,null,null,0,null,"Duelliste",null,1,1,null,null,1,null,{"$f":"IF(B14<>0,AH14*C14,0)","v":0},{"$f":"IF(B14<>0,AI14*C14,0)","v":0},{"$f":"IF(B14<>0,AJ14*C14,0)","v":0},{"$f":"IF(B14<>0,AK14*C14,0)","v":0},{"$f":"IF(B14<>0,AL14*C14,0)","v":0},{"$f":"IF(B14<>0,AM14*C14,0)","v":0},7,3,7]
[13,"Matelot",null,null,"Trop",{"$f":"IF(F13-F12<0,0,F13-F12)","v":0},"Natation",null,null,{"$f":"IF(AND('Feuille perso'!$B$22=0,'Feuille perso'!$B$23=0,'Feuille perso'!$B$24=0,'Feuille perso'!$B$25=0,'Feuille perso'!$B$26=0),0,VLOOKUP(\"Oui\",'Feuille perso'!$A$22:$N$26,12,FALSE)+VLOOKUP(\"Oui\",'Feuille perso'!$A$22:$N$26,13,FALSE))","v":0},0,"Technologie",null,null,null,0,"Perception",null,null,null,0,"Rumeurs",null,null,null,0,"Sortilèges",null,null,null,0,null,"Matelot",1,null,1,1,null,1,null,{"$f":"AH15*C15","v":0},{"$f":"AI15*C15","v":0},{"$f":"AJ15*C15","v":0},{"$f":"AK15*C15","v":0},{"$f":"AL15*C15","v":0},{"$f":"AM15*C15","v":0},6,4,5]
[14,{"$f":"IF(AND(C15>5,D16=\"Marin\"),AG16,0)","v":0},null,null,null,null,"Navigation",null,null,null,0,"Thanatologie",null,null,null,0,"Pistage",null,null,null,0,"Séduction",null,null,null,0,"Tactiques",null,null,null,0,null,"Marin",1,null,1,1,null,1,null,{"$f":"IF(B16<>0,AH16*C16,0)","v":0},{"$f":"IF(B16<>0,AI16*C16,0)","v":0},{"$f":"IF(B16<>0,AJ16*C16,0)","v":0},{"$f":"IF(B16<>0,AK16*C16,0)","v":0},{"$f":"IF(B16<>0,AL16*C16,0)","v":0},{"$f":"IF(B16<>0,AM16*C16,0)","v":0},6,5,5]
[15,{"$f":"IF(AND(C16>5,D17=\"Navigateur\",B16<>0),AG17,0)","v":0},null,null,"# de pex dépensé",{"$f":"AT139","v":0},"Torture",null,null,null,0,"Vol à la tire",null,null,{"$f":"IF(AND('Feuille perso'!$B$22=0,'Feuille perso'!$B$23=0,'Feuille perso'!$B$24=0,'Feuille perso'!$B$25=0,'Feuille perso'!$B$26=0),0,VLOOKUP(\"Oui\",'Feuille perso'!$A$22:$N$26,12,FALSE)+VLOOKUP(\"Oui\",'Feuille perso'!$A$22:$N$26,13,FALSE))","v":0},0,"Recherche",null,null,null,0,"Ventriloquie",null,null,null,0,"Théologie",null,null,null,0,null,"Navigateur",1,null,1,1,null,1,null,{"$f":"IF(B17<>0,AH17*C17,0)","v":0},{"$f":"IF(B17<>0,AI17*C17,0)","v":0},{"$f":"IF(B17<>0,AJ17*C17,0)","v":0},{"$f":"IF(B17<>0,AK17*C17,0)","v":0},{"$f":"IF(B17<>0,AL17*C17,0)","v":0},{"$f":"IF(B17<>0,AM17*C17,0)","v":0},7,5,5]
[16,"Artisan",null,null,"# de pex reçu",{"$f":"'Feuille perso'!C1","v":0},null,null,null,null,0,null,null,null,null,0,null,null,null,null,0,null,null,null,null,0,null,null,null,null,0,null,"Artisan",1,1,null,1,null,1,null,{"$f":"AH18*C18","v":0},{"$f":"AI18*C18","v":0},{"$f":"AJ18*C18","v":0},{"$f":"AK18*C18","v":0},{"$f":"AL18*C18","v":0},{"$f":"AM18*C18","v":0},6,5,4]
[17,{"$f":"IF(AND(C18>5,D19=\"Forgeron\"),AG19,0)","v":0},null,null,"Reste",{"$f":"IF(F18-F17<0,0,F18-F17)","v":0},null,null,null,null,0,null,null,null,null,0,null,null,null,null,0,null,null,null,null,0,null,null,null,null,0,null,"Forgeron",1,1,null,1,null,1,null,{"$f":"IF(B19<>0,AH19*C19,0)","v":0},{"$f":"IF(B19<>0,AI19*C19,0)","v":0},{"$f":"IF(B19<>0,AJ19*C19,0)","v":0},{"$f":"IF(B19<>0,AK19*C19,0)","v":0},{"$f":"IF(B19<>0,AL19*C19,0)","v":0},{"$f":"IF(B19<>0,AM19*C19,0)","v":0},6,6,4]
[18,{"$f":"IF(AND(C19>5,D20=\"Métallurgiste\",B19<>0),AG20,0)","v":0},null,null,"Trop",{"$f":"IF(F17-F18<0,0,F17-F18)","v":0},null,null,null,null,null,null,null,null,null,null,null,null,null,null,null,null,null,null,null,null,null,null,null,null,null,null,"Métallurgiste",1,1,null,1,null,1,null,{"$f":"IF(B20<>0,AH20*C20,0)","v":0},{"$f":"IF(B20<>0,AI20*C20,0)","v":0},{"$f":"IF(B20<>0,AJ20*C20,0)","v":0},{"$f":"IF(B20<>0,AK20*C20,0)","v":0},{"$f":"IF(B20<>0,AL20*C20,0)","v":0},{"$f":"IF(B20<>0,AM20*C20,0)","v":0},6,6,5]
[19,"Aventurier",null,null,"Bonus",null,"Total",{"$f":"SUM(H3:H20)","v":0},null,null,null,null,{"$f":"SUM(M3:M20)","v":0},null,null,null,null,{"$f":"SUM(R3:R20)","v":0},null,null,null,null,{"$f":"SUM(W3:W20)","v":0},null,null,null,null,{"$f":"SUM(AB3:AB20)","v":0},null,null,null,null,"Aventurier",null,1,1,null,null,1,null,{"$f":"AH21*C21","v":0},{"$f":"AI21*C21","v":0},{"$f":"AJ21*C21","v":0},{"$f":"AK21*C21","v":0},{"$f":"AL21*C21","v":0},{"$f":"AM21*C21","v":0},5,3,7]
[20,{"$f":"IF(AND(C21>5,D22=\"Rôdeur\"),AG22,0)","v":0},null,null,null,null,"Manque",{"$f":"IF(H21<F5,F5-H21,\"ok\")","v":"ok"},null,null,null,"Manque",{"$f":"IF(M21<F6,F6-M21,\"ok\")","v":"ok"},null,null,null,"Manque",{"$f":"IF(R21<F7,F7-R21,\"ok\")","v":"ok"},null,null,null,"Manque",{"$f":"IF(W21<F8,F8-W21,\"ok\")","v":"ok"},null,null,null,"Manque",{"$f":"IF(AB21<F9,F9-AB21,\"ok\")","v":"ok"},null,null,null,null,"Rôdeur",null,1,1,null,null,1,null,{"$f":"IF(B22<>0,AH22*C22,0)","v":0},{"$f":"IF(B22<>0,AI22*C22,0)","v":0},{"$f":"IF(B22<>0,AJ22*C22,0)","v":0},{"$f":"IF(B22<>0,AK22*C22,0)","v":0},{"$f":"IF(B22<>0,AL22*C22,0)","v":0},{"$f":"IF(B22<>0,AM22*C22,0)","v":0},5,3,8]
[21,{"$f":"IF(AND(C22>5,D23=\"Espion\",B22<>0),AG23,0)","v":0},null,null,null,null,null,null,null,null,null,null,null,null,null,null,null,null,null,null,null,null,null,null,null,null,null,null,null,null,null,null,"Espion",null,1,1,null,null,1,null,{"$f":"IF(B23<>0,AH23*C23,0)","v":0},{"$f":"IF(B23<>0,AI23*C23,0)","v":0},{"$f":"IF(B23<>0,AJ23*C23,0)","v":0},{"$f":"IF(B23<>0,AK23*C23,0)","v":0},{"$f":"IF(B23<>0,AL23*C23,0)","v":0},{"$f":"IF(B23<>0,AM23*C23,0)","v":0},5,4,8]
[22,"Archer",null,null,null,null,null,null,null,null,null,null,null,null,null,null,null,null,null,null,null,null,null,null,null,null,null,null,null,null,null,null,"Archer",null,1,1,null,null,1,null,{"$f":"AH24*C24","v":0},{"$f":"AI24*C24","v":0},{"$f":"AJ24*C24","v":0},{"$f":"AK24*C24","v":0},{"$f":"AL24*C24","v":0},{"$f":"AM24*C24","v":0},5,4,6]
[23,{"$f":"IF(AND(C24>5,D25=\"Arbalétrier\"),AG25,0)","v":0},null,null,null,null,null,null,null,null,null,null,null,null,null,null,null,null,null,null,null,null,null,null,null,null,null,null,null,null,null,null,"Arbalétrier",null,1,1,null,null,1,null,{"$f":"IF(B25<>0,AH25*C25,0)","v":0},{"$f":"IF(B25<>0,AI25*C25,0)","v":0},{"$f":"IF(B25<>0,AJ25*C25,0)","v":0},{"$f":"IF(B25<>0,AK25*C25,0)","v":0},{"$f":"IF(B25<>0,AL25*C25,0)","v":0},{"$f":"IF(B25<>0,AM25*C25,0)","v":0},6,4,6]
[24,{"$f":"IF(AND(C25>5,D26=\"Arquebusier\",B25<>0),AG26,0)","v":0},null,null,null,null,null,null,null,null,null,null,null,null,null,null,null,null,null,null,null,null,null,null,null,null,null,null,null,null,null,null,"Arquebusier",null,1,1,null,null,1,null,{"$f":"IF(B26<>0,AH26*C26,0)","v":0},{"$f":"IF(B26<>0,AI26*C26,0)","v":0},{"$f":"IF(B26<>0,AJ26*C26,0)","v":0},{"$f":"IF(B26<>0,AK26*C26,0)","v":0},{"$f":"IF(B26<>0,AL26*C26,0)","v":0},{"$f":"IF(B26<>0,AM26*C26,0)","v":0},6,4,7]
[25,"Marchand",null,null,null,null,null,null,null,null,null,null,null,null,null,null,null,null,null,null,null,null,null,null,null,null,null,null,null,null,null,null,"Marchand",null,1,1,1,null,1,null,{"$f":"AH27*C27","v":0},{"$f":"AI27*C27","v":0},{"$f":"AJ27*C27","v":0},{"$f":"AK27*C27","v":0},{"$f":"AL27*C27","v":0},{"$f":"AM27*C27","v":0},5,5,5]
[26,{"$f":"IF(AND(C27>5,D28=\"Négociateur\"),AG28,0)","v":0},null,null,null,null,null,null,null,null,null,null,null,null,null,null,null,null,null,null,null,null,null,null,null,null,null,null,null,null,null,null,"Négociateur",null,1,1,1,null,1,null,{"$f":"IF(B28<>0,AH28*C28,0)","v":0},{"$f":"IF(B28<>0,AI28*C28,0)","v":0},{"$f":"IF(B28<>0,AJ28*C28,0)","v":0},{"$f":"IF(B28<>0,AK28*C28,0)","v":0},{"$f":"IF(B28<>0,AL28*C28,0)","v":0},{"$f":"IF(B28<>0,AM28*C28,0)","v":0},5,5,6]
[27,{"$f":"IF(AND(C28>5,D29=\"Médiateur\",B28<>0),AG29,0)","v":0},null,null,null,null,null,null,null,null,null,null,null,null,null,null,null,null,null,null,null,null,null,null,null,null,null,null,null,null,null,null,"Médiateur",null,1,1,1,null,1,null,{"$f":"IF(B29<>0,AH29*C29,0)","v":0},{"$f":"IF(B29<>0,AI29*C29,0)","v":0},{"$f":"IF(B29<>0,AJ29*C29,0)","v":0},{"$f":"IF(B29<>0,AK29*C29,0)","v":0},{"$f":"IF(B29<>0,AL29*C29,0)","v":0},{"$f":"IF(B29<>0,AM29*C29,0)","v":0},6,5,6]
[28,"Clerc",null,null,null,null,null,null,null,null,null,null,null,null,null,null,null,null,null,null,null,null,null,null,null,null,null,null,null,null,null,null,"Clerc",null,null,null,1,1,1,null,{"$f":"AH30*C30","v":0},{"$f":"AI30*C30","v":0},{"$f":"AJ30*C30","v":0},{"$f":"AK30*C30","v":0},{"$f":"AL30*C30","v":0},{"$f":"AM30*C30","v":0},5,6,4]
[29,{"$f":"IF(AND(C30>5,D31=\"Prêtre\"),AG31,0)","v":0},null,null,null,null,null,null,null,null,null,null,null,null,null,null,null,null,null,null,null,null,null,null,null,null,null,null,null,null,null,null,"Prêtre",null,null,null,1,1,1,null,{"$f":"IF(B31<>0,AH31*C31,0)","v":0},{"$f":"IF(B31<>0,AI31*C31,0)","v":0},{"$f":"IF(B31<>0,AJ31*C31,0)","v":0},{"$f":"IF(B31<>0,AK31*C31,0)","v":0},{"$f":"IF(B31<>0,AL31*C31,0)","v":0},{"$f":"IF(B31<>0,AM31*C31,0)","v":0},5,7,4]
[30,{"$f":"IF(AND(C31>5,D32=\"Évêque\",B31<>0),AG32,0)","v":0},null,null,null,null,null,null,null,null,null,null,null,null,null,null,null,null,null,null,null,null,null,null,null,null,null,null,null,null,null,null,"Évêque",null,null,null,1,1,1,null,{"$f":"IF(B32<>0,AH32*C32,0)","v":0},{"$f":"IF(B32<>0,AI32*C32,0)","v":0},{"$f":"IF(B32<>0,AJ32*C32,0)","v":0},{"$f":"IF(B32<>0,AK32*C32,0)","v":0},{"$f":"IF(B32<>0,AL32*C32,0)","v":0},{"$f":"IF(B32<>0,AM32*C32,0)","v":0},5,7,5]
[31,"Moine",null,null,null,null,null,null,null,null,null,null,null,null,null,null,null,null,null,null,null,null,null,null,null,null,null,null,null,null,null,null,"Moine",1,1,1,null,null,1,null,{"$f":"AH33*C33","v":0},{"$f":"AI33*C33","v":0},{"$f":"AJ33*C33","v":0},{"$f":"AK33*C33","v":0},{"$f":"AL33*C33","v":0},{"$f":"AM33*C33","v":0},4,4,7]
[32,{"$f":"IF(AND(C33>5,D34=\"Initié\"),AG34,0)","v":0},null,null,null,null,null,null,null,null,null,null,null,null,null,null,null,null,null,null,null,null,null,null,null,null,null,null,null,null,null,null,"Initié",1,1,1,null,null,1,null,{"$f":"IF(B34<>0,AH34*C34,0)","v":0},{"$f":"IF(B34<>0,AI34*C34,0)","v":0},{"$f":"IF(B34<>0,AJ34*C34,0)","v":0},{"$f":"IF(B34<>0,AK34*C34,0)","v":0},{"$f":"IF(B34<>0,AL34*C34,0)","v":0},{"$f":"IF(B34<>0,AM34*C34,0)","v":0},5,4,7]
[33,{"$f":"IF(AND(C34>5,D35=\"Mentor\",B34<>0),AG35,0)","v":0},null,null,null,null,null,null,null,null,null,null,null,null,null,null,null,null,null,null,null,null,null,null,null,null,null,null,null,null,null,null,"Mentor",1,1,1,null,null,1,null,{"$f":"IF(B35<>0,AH35*C35,0)","v":0},{"$f":"IF(B35<>0,AI35*C35,0)","v":0},{"$f":"IF(B35<>0,AJ35*C35,0)","v":0},{"$f":"IF(B35<>0,AK35*C35,0)","v":0},{"$f":"IF(B35<>0,AL35*C35,0)","v":0},{"$f":"IF(B35<>0,AM35*C35,0)","v":0},5,5,7]
[34,"Forestier",null,null,null,null,null,null,null,null,null,null,null,null,null,null,null,null,null,null,null,null,null,null,null,null,null,null,null,null,null,null,"Forestier",1,null,1,null,1,1,null,{"$f":"AH36*C36","v":0},{"$f":"AI36*C36","v":0},{"$f":"AJ36*C36","v":0},{"$f":"AK36*C36","v":0},{"$f":"AL36*C36","v":0},{"$f":"AM36*C36","v":0},4,5,6]
[35,{"$f":"IF(AND(C36>5,D37=\"Ranger\"),AG37,0)","v":0},null,null,null,null,null,null,null,null,null,null,null,null,null,null,null,null,null,null,null,null,null,null,null,null,null,null,null,null,null,null,"Ranger",1,null,1,null,1,1,null,{"$f":"IF(B37<>0,AH37*C37,0)","v":0},{"$f":"IF(B37<>0,AI37*C37,0)","v":0},{"$f":"IF(B37<>0,AJ37*C37,0)","v":0},{"$f":"IF(B37<>0,AK37*C37,0)","v":0},{"$f":"IF(B37<>0,AL37*C37,0)","v":0},{"$f":"IF(B37<>0,AM37*C37,0)","v":0},4,5,7]
[36,{"$f":"IF(AND(C37>5,D38=\"Druide\",B37<>0),AG38,0)","v":0},null,null,null,null,null,null,null,null,null,null,null,null,null,null,null,null,null,null,null,null,null,null,null,null,null,null,null,null,null,null,"Druide",1,null,1,null,1,1,null,{"$f":"IF(B38<>0,AH38*C38,0)","v":0},{"$f":"IF(B38<>0,AI38*C38,0)","v":0},{"$f":"IF(B38<>0,AJ38*C38,0)","v":0},{"$f":"IF(B38<>0,AK38*C38,0)","v":0},{"$f":"IF(B38<>0,AL38*C38,0)","v":0},{"$f":"IF(B38<>0,AM38*C38,0)","v":0},4,6,7]
[37,"Cultiste",null,null,null,null,null,null,null,null,null,null,null,null,null,null,null,null,null,null,null,null,null,null,null,null,null,null,null,null,null,null,"Cultiste",null,1,null,1,1,1,null,{"$f":"AH39*C39","v":0},{"$f":"AI39*C39","v":0},{"$f":"AJ39*C39","v":0},{"$f":"AK39*C39","v":0},{"$f":"AL39*C39","v":0},{"$f":"AM39*C39","v":0},4,6,5]
[38,{"$f":"IF(AND(C39>5,D40=\"Acolyte\"),AG40,0)","v":0},null,null,null,null,null,null,null,null,null,null,null,null,null,null,null,null,null,null,null,null,null,null,null,null,null,null,null,null,null,null,"Acolyte",null,1,null,1,1,1,null,{"$f":"IF(B40<>0,AH40*C40,0)","v":0},{"$f":"IF(B40<>0,AI40*C40,0)","v":0},{"$f":"IF(B40<>0,AJ40*C40,0)","v":0},{"$f":"IF(B40<>0,AK40*C40,0)","v":0},{"$f":"IF(B40<>0,AL40*C40,0)","v":0},{"$f":"IF(B40<>0,AM40*C40,0)","v":0},4,6,6]
[39,{"$f":"IF(AND(C40>5,D41=\"Gourou\",B40<>0),AG41,0)","v":0},null,null,null,null,null,null,null,null,null,null,null,null,null,null,null,null,null,null,null,null,null,null,null,null,null,null,null,null,null,null,"Gourou",null,1,null,1,1,1,null,{"$f":"IF(B41<>0,AH41*C41,0)","v":0},{"$f":"IF(B41<>0,AI41*C41,0)","v":0},{"$f":"IF(B41<>0,AJ41*C41,0)","v":0},{"$f":"IF(B41<>0,AK41*C41,0)","v":0},{"$f":"IF(B41<>0,AL41*C41,0)","v":0},{"$f":"IF(B41<>0,AM41*C41,0)","v":0},5,6,6]
[40,"Apothicaire",null,null,null,null,null,null,null,null,null,null,null,null,null,null,null,null,null,null,null,null,null,null,null,null,null,null,null,null,null,null,"Apothicaire",null,1,null,null,1,1,null,{"$f":"AH42*C42","v":0},{"$f":"AI42*C42","v":0},{"$f":"AJ42*C42","v":0},{"$f":"AK42*C42","v":0},{"$f":"AL42*C42","v":0},{"$f":"AM42*C42","v":0},3,6,6]
[41,{"$f":"IF(AND(C42>5,D43=\"Guérisseur\"),AG43,0)","v":0},null,null,null,null,null,null,null,null,null,null,null,null,null,null,null,null,null,null,null,null,null,null,null,null,null,null,null,null,null,null,"Guérisseur",null,1,null,null,1,1,null,{"$f":"IF(C42>5,AH43*C43,0)","v":0},{"$f":"IF(C42>5,AI43*C43,0)","v":0},{"$f":"IF(C42>5,AJ43*C43,0)","v":0},{"$f":"IF(C42>5,AK43*C43,0)","v":0},{"$f":"IF(C42>5,AL43*C43,0)","v":0},{"$f":"IF(C42>5,AM43*C43,0)","v":0},3,7,6]
[42,{"$f":"IF(AND(C43>5,D44=\"Médecin\",B43<>0),AG44,0)","v":0},null,null,null,null,null,null,null,null,null,null,null,null,null,null,null,null,null,null,null,null,null,null,null,null,null,null,null,null,null,null,"Médecin",null,1,null,null,1,1,null,{"$f":"IF(C43>5,AH44*C44,0)","v":0},{"$f":"IF(C43>5,AI44*C44,0)","v":0},{"$f":"IF(C43>5,AJ44*C44,0)","v":0},{"$f":"IF(C43>5,AK44*C44,0)","v":0},{"$f":"IF(C43>5,AL44*C44,0)","v":0},{"$f":"IF(C43>5,AM44*C44,0)","v":0},4,7,6]
[43,"Étudiant",null,null,null,null,null,null,null,null,null,null,null,null,null,null,null,null,null,null,null,null,null,null,null,null,null,null,null,null,null,null,"Étudiant",null,null,1,1,1,1,null,{"$f":"AH45*C45","v":0},{"$f":"AI45*C45","v":0},{"$f":"AJ45*C45","v":0},{"$f":"AK45*C45","v":0},{"$f":"AL45*C45","v":0},{"$f":"AM45*C45","v":0},3,7,5]
[44,{"$f":"IF(AND(C45>5,D46=\"Érudit\"),AG46,0)","v":0},null,null,null,null,null,null,null,null,null,null,null,null,null,null,null,null,null,null,null,null,null,null,null,null,null,null,null,null,null,null,"Érudit",null,null,1,1,1,1,null,{"$f":"IF(B46<>0,AH46*C46,0)","v":0},{"$f":"IF(B46<>0,AI46*C46,0)","v":0},{"$f":"IF(B46<>0,AJ46*C46,0)","v":0},{"$f":"IF(B46<>0,AK46*C46,0)","v":0},{"$f":"IF(B46<>0,AL46*C46,0)","v":0},{"$f":"IF(B46<>0,AM46*C46,0)","v":0},4,7,5]
[45,{"$f":"IF(AND(C46>5,D47=\"Scientifique\",B46<>0),AG47,0)","v":0},null,null,null,null,null,null,null,null,null,null,null,null,null,null,null,null,null,null,null,null,null,null,null,null,null,null,null,null,null,null,"Scientifique",null,null,1,1,1,1,null,{"$f":"IF(B47<>0,AH47*C47,0)","v":0},{"$f":"IF(B47<>0,AI47*C47,0)","v":0},{"$f":"IF(B47<>0,AJ47*C47,0)","v":0},{"$f":"IF(B47<>0,AK47*C47,0)","v":0},{"$f":"IF(B47<>0,AL47*C47,0)","v":0},{"$f":"IF(B47<>0,AM47*C47,0)","v":0},4,8,5]
[46,"Apprenti",null,null,null,null,null,null,null,null,null,null,null,null,null,null,null,null,null,null,null,null,null,null,null,null,null,null,null,null,null,null,"Apprenti",null,null,1,null,1,1,null,{"$f":"AH48*C48","v":0},{"$f":"AI48*C48","v":0},{"$f":"AJ48*C48","v":0},{"$f":"AK48*C48","v":0},{"$f":"AL48*C48","v":0},{"$f":"AM48*C48","v":0},2,7,6]
[47,{"$f":"IF(AND(C48>5,D49=\"Magicien\"),AG49,0)","v":0},null,null,null,null,null,null,null,null,null,null,null,null,null,null,null,null,null,null,null,null,null,null,null,null,null,null,null,null,null,null,"Magicien",null,null,1,null,1,1,null,{"$f":"IF(B49<>0,AH49*C49,0)","v":0},{"$f":"IF(B49<>0,AI49*C49,0)","v":0},{"$f":"IF(B49<>0,AJ49*C49,0)","v":0},{"$f":"IF(B49<>0,AK49*C49,0)","v":0},{"$f":"IF(B49<>0,AL49*C49,0)","v":0},{"$f":"IF(B49<>0,AM49*C49,0)","v":0},2,8,6]
[48,{"$f":"IF(AND(C49>5,D50=\"Sorcier\",B49<>0),AG50,0)","v":0},null,null,null,null,null,null,null,null,null,null,null,null,null,null,null,null,null,null,null,null,null,null,null,null,null,null,null,null,null,null,"Sorcier",null,null,1,null,1,1,null,{"$f":"IF(B50<>0,AH50*C50,0)","v":0},{"$f":"IF(B50<>0,AI50*C50,0)","v":0},{"$f":"IF(B50<>0,AJ50*C50,0)","v":0},{"$f":"IF(B50<>0,AK50*C50,0)","v":0},{"$f":"IF(B50<>0,AL50*C50,0)","v":0},{"$f":"IF(B50<>0,AM50*C50,0)","v":0},3,8,6]
[]
[49,{"$f":"IF(AND(B5<>0,C33>5,D52=\"Guerrier\",C5>5),AG52,0)","v":0},null,null,null,null,null,null,null,null,null,null,null,null,null,null,null,null,null,null,null,null,null,null,null,null,null,null,null,null,null,null,"Guerrier",1,1,null,null,null,1,null,{"$f":"IF(B52<>0,AH52*C52,0)","v":0},{"$f":"IF(B52<>0,AI52*C52,0)","v":0},{"$f":"IF(B52<>0,AJ52*C52,0)","v":0},{"$f":"IF(B52<>0,AK52*C52,0)","v":0},{"$f":"IF(B52<>0,AL52*C52,0)","v":0},{"$f":"IF(B52<>0,AM52*C52,0)","v":0},9,3,6]
[50,{"$f":"IF(AND(C52>5,D53=\"Vétéran\",B52<>0),AG53,0)","v":0},null,null,null,null,null,null,null,null,null,null,null,null,null,null,null,null,null,null,null,null,null,null,null,null,null,null,null,null,null,null,"Vétéran",1,1,null,null,null,1,null,0,0,0,0,0,0,9,3,7]
[51,{"$f":"IF(AND(C3>5,B14<>0,D54=\"Maître d'Armes\",C14>5),AG54,0)","v":0},null,null,null,null,null,null,null,null,null,null,null,null,null,null,null,null,null,null,null,null,null,null,null,null,null,null,null,null,null,null,"Maître d'Armes",null,1,null,1,null,1,null,0,0,0,0,0,0,8,4,6]
[52,{"$f":"IF(AND(C54>5,D55=\"Seigneur d'Armes\",B54<>0),AG55,0)","v":0},null,null,null,null,null,null,null,null,null,null,null,null,null,null,null,null,null,null,null,null,null,null,null,null,null,null,null,null,null,null,"Seigneur d'Armes",null,1,null,1,null,1,null,0,0,0,0,0,0,8,4,7]
[53,{"$f":"IF(AND(B11<>0,C6>5,D56=\"Grand Chevalier\",C11>5),AG56,0)","v":0},null,null,null,null,null,null,null,null,null,null,null,null,null,null,null,null,null,null,null,null,null,null,null,null,null,null,null,null,null,null,"Grand Chevalier",1,null,1,null,1,1,null,0,0,0,0,0,0,8,5,5]
[54,{"$f":"IF(AND(C56>5,D57=\"Chef de Cavalerie\",B56<>0),AG57,0)","v":0},null,null,null,null,null,null,null,null,null,null,null,null,null,null,null,null,null,null,null,null,null,null,null,null,null,null,null,null,null,null,"Chef de Cavalerie",1,null,1,null,1,1,null,0,0,0,0,0,0,8,5,6]
[55,{"$f":"IF(AND(C30>5,B8<>0,D58=\"Paladin\",C8>5),AG58,0)","v":0},null,null,null,null,null,null,null,null,null,null,null,null,null,null,null,null,null,null,null,null,null,null,null,null,null,null,null,null,null,null,"Paladin",1,null,null,1,null,1,null,0,0,0,0,0,0,8,6,4]
[56,{"$f":"IF(AND(C58>5,D59=\"Premier Paladin\",B58<>0),AG59,0)","v":0},null,null,null,null,null,null,null,null,null,null,null,null,null,null,null,null,null,null,null,null,null,null,null,null,null,null,null,null,null,null,"Premier Paladin",1,null,null,1,null,1,null,0,0,0,0,0,0,9,6,4]
[57,{"$f":"IF(AND(B13<>0,B34<>0,D60=\"Lancier\",C13>5,C34>5),AG60,0)","v":0},null,null,null,null,null,null,null,null,null,null,null,null,null,null,null,null,null,null,null,null,null,null,null,null,null,null,null,null,null,null,"Lancier",null,1,1,null,null,1,null,0,0,0,0,0,0,7,3,8]
[58,{"$f":"IF(AND(C60>5,D61=\"Lancier Impériale\",B60<>0),AG61,0)","v":0},null,null,null,null,null,null,null,null,null,null,null,null,null,null,null,null,null,null,null,null,null,null,null,null,null,null,null,null,null,null,"Lancier Impériale",null,1,1,null,null,1,null,0,0,0,0,0,0,8,3,8]
[59,{"$f":"IF(AND(B26<>0,C9>5,D62=\"Mousquetaire\",C26>5),AG62,0)","v":0},null,null,null,null,null,null,null,null,null,null,null,null,null,null,null,null,null,null,null,null,null,null,null,null,null,null,null,null,null,null,"Mousquetaire",1,1,1,null,null,1,null,0,0,0,0,0,0,7,4,7]
[60,{"$f":"IF(AND(C62>5,D63=\"Artilleur\",B62<>0),AG63,0)","v":0},null,null,null,null,null,null,null,null,null,null,null,null,null,null,null,null,null,null,null,null,null,null,null,null,null,null,null,null,null,null,"Artilleur",1,1,1,null,null,1,null,0,0,0,0,0,0,7,4,8]
[61,{"$f":"IF(AND(B19<>0,B7<>0,D64=\"Protecteur\",C19>5,C7>5),AG64,0)","v":0},null,null,null,null,null,null,null,null,null,null,null,null,null,null,null,null,null,null,null,null,null,null,null,null,null,null,null,null,null,null,"Protecteur",1,1,null,1,null,1,null,0,0,0,0,0,0,7,5,6]
[62,{"$f":"IF(AND(C64>5,D65=\"Gardien\",B64<>0),AG65,0)","v":0},null,null,null,null,null,null,null,null,null,null,null,null,null,null,null,null,null,null,null,null,null,null,null,null,null,null,null,null,null,null,"Gardien",1,1,null,1,null,1,null,0,0,0,0,0,0,7,5,7]
[63,{"$f":"IF(AND(B4<>0,B40<>0,C4>5,C40>5,D66=\"Guerrier Noir\"),AG66,0)","v":0},null,null,null,null,null,null,null,null,null,null,null,null,null,null,null,null,null,null,null,null,null,null,null,null,null,null,null,null,null,null,"Guerrier Noir",1,1,1,null,null,1,null,0,0,0,0,0,0,7,6,5]
[64,{"$f":"IF(AND(C66>5,D67=\"Paladin Noir\",B66<>0),AG67,0)","v":0},null,null,null,null,null,null,null,null,null,null,null,null,null,null,null,null,null,null,null,null,null,null,null,null,null,null,null,null,null,null,"Paladin Noir",1,1,1,null,null,1,null,0,0,0,0,0,0,8,6,5]
[65,{"$f":"IF(AND(B10<>0,B16<>0,C10>5,C16>5,D68=\"Scout\"),AG68,0)","v":0},null,null,null,null,null,null,null,null,null,null,null,null,null,null,null,null,null,null,null,null,null,null,null,null,null,null,null,null,null,null,"Scout",null,1,1,1,null,1,null,0,0,0,0,0,0,6,4,8]
[66,{"$f":"IF(AND(C68>5,D69=\"Explorateur\",B68<>0),AG69,0)","v":0},null,null,null,null,null,null,null,null,null,null,null,null,null,null,null,null,null,null,null,null,null,null,null,null,null,null,null,null,null,null,"Explorateur",null,1,1,1,null,1,null,0,0,0,0,0,0,6,5,8]
[67,{"$f":"IF(AND(B17<>0,C17>5,C21>5,D70=\"Capitaine\"),AG70,0)","v":0},null,null,null,null,null,null,null,null,null,null,null,null,null,null,null,null,null,null,null,null,null,null,null,null,null,null,null,null,null,null,"Capitaine",1,null,1,1,null,1,null,0,0,0,0,0,0,6,5,7]
[68,{"$f":"IF(AND(C70>5,D71=\"Commodore\",B70<>0),AG71,0)","v":0},null,null,null,null,null,null,null,null,null,null,null,null,null,null,null,null,null,null,null,null,null,null,null,null,null,null,null,null,null,null,"Commodore",1,null,1,1,null,1,null,0,0,0,0,0,0,6,6,7]
[69,{"$f":"IF(AND(B22<>0,B25<>0,C22>5,C25>5,D72=\"Tireur\"),AG72,0)","v":0},null,null,null,null,null,null,null,null,null,null,null,null,null,null,null,null,null,null,null,null,null,null,null,null,null,null,null,null,null,null,"Tireur",1,1,null,null,1,1,null,0,0,0,0,0,0,6,6,6]
[70,{"$f":"IF(AND(C72>5,D73=\"Franc Tireur\",B72<>0),AG73,0)","v":0},null,null,null,null,null,null,null,null,null,null,null,null,null,null,null,null,null,null,null,null,null,null,null,null,null,null,null,null,null,null,"Franc Tireur",1,1,null,null,1,1,null,0,0,0,0,0,0,7,6,6]
[71,{"$f":"IF(AND(C12>5,B32<>0,C32>5,D74=\"Inquisiteur\"),AG74,0)","v":0},null,null,null,null,null,null,null,null,null,null,null,null,null,null,null,null,null,null,null,null,null,null,null,null,null,null,null,null,null,null,"Inquisiteur",null,1,1,1,null,1,null,0,0,0,0,0,0,6,7,5]
[72,{"$f":"IF(AND(C74>5,D75=\"Fanatique\",B74<>0),AG75,0)","v":0},null,null,null,null,null,null,null,null,null,null,null,null,null,null,null,null,null,null,null,null,null,null,null,null,null,null,null,null,null,null,"Fanatique",null,1,1,1,null,1,null,0,0,0,0,0,0,7,7,5]
[73,{"$f":"IF(AND(B31<>0,B49<>0,C31>5,C49>5,D76=\"Thaumaturge\"),AG76,0)","v":0},null,null,null,null,null,null,null,null,null,null,null,null,null,null,null,null,null,null,null,null,null,null,null,null,null,null,null,null,null,null,"Thaumaturge",null,null,1,null,1,1,null,0,0,0,0,0,0,6,8,4]
[74,{"$f":"IF(AND(C76>5,D77=\"Archimage\",B76<>0),AG77,0)","v":0},null,null,null,null,null,null,null,null,null,null,null,null,null,null,null,null,null,null,null,null,null,null,null,null,null,null,null,null,null,null,"Archimage",null,null,1,null,1,1,null,0,0,0,0,0,0,6,8,5]
[75,{"$f":"IF(AND(B23<>0,C42>5,C23>5,D78=\"Assassin\"),AG78,0)","v":0},null,null,null,null,null,null,null,null,null,null,null,null,null,null,null,null,null,null,null,null,null,null,null,null,null,null,null,null,null,null,"Assassin",null,1,1,null,1,1,null,0,0,0,0,0,0,5,4,9]
[76,{"$f":"IF(AND(C78>5,D79=\"Ninja\",B78<>0),AG79,0)","v":0},null,null,null,null,null,null,null,null,null,null,null,null,null,null,null,null,null,null,null,null,null,null,null,null,null,null,null,null,null,null,"Ninja",null,1,1,null,1,1,null,0,0,0,0,0,0,6,4,9]
[77,{"$f":"IF(AND(B35<>0,C36>5,C35>5,D80=\"Maître Moine\"),AG80,0)","v":0},null,null,null,null,null,null,null,null,null,null,null,null,null,null,null,null,null,null,null,null,null,null,null,null,null,null,null,null,null,null,"Maître Moine",1,1,1,null,null,1,null,0,0,0,0,0,0,5,5,8]
[78,{"$f":"IF(AND(C80>5,D81=\"Sensei\",B80<>0),AG81,0)","v":0},null,null,null,null,null,null,null,null,null,null,null,null,null,null,null,null,null,null,null,null,null,null,null,null,null,null,null,null,null,null,"Sensei",1,1,1,null,null,1,null,0,0,0,0,0,0,5,5,9]
[79,{"$f":"IF(AND(C15>5,B29<>0,C29>5,D82=\"Diplomate\"),AG82,0)","v":0},null,null,null,null,null,null,null,null,null,null,null,null,null,null,null,null,null,null,null,null,null,null,null,null,null,null,null,null,null,null,"Diplomate",null,1,1,1,null,1,null,0,0,0,0,0,0,5,6,7]
[80,{"$f":"IF(AND(C82>5,D83=\"Ambassadeur\",B82<>0),AG83,0)","v":0},null,null,null,null,null,null,null,null,null,null,null,null,null,null,null,null,null,null,null,null,null,null,null,null,null,null,null,null,null,null,"Ambassadeur",null,1,1,1,null,1,null,0,0,0,0,0,0,5,7,7]
[81,{"$f":"IF(AND(B20<>0,C24>5,C20>5,D84=\"Canonnier\"),AG84,0)","v":0},null,null,null,null,null,null,null,null,null,null,null,null,null,null,null,null,null,null,null,null,null,null,null,null,null,null,null,null,null,null,"Canonnier",null,1,1,null,1,1,null,0,0,0,0,0,0,5,7,6]
[82,{"$f":"IF(AND(C84>5,D85=\"Enginieur\",B84<>0),AG85,0)","v":0},null,null,null,null,null,null,null,null,null,null,null,null,null,null,null,null,null,null,null,null,null,null,null,null,null,null,null,null,null,null,"Enginieur",null,1,1,null,1,1,null,0,0,0,0,0,0,6,7,6]
[83,{"$f":"IF(AND(B43<>0,B46<>0,C43>5,C46>5,D86=\"Chimiste\"),AG86,0)","v":0},null,null,null,null,null,null,null,null,null,null,null,null,null,null,null,null,null,null,null,null,null,null,null,null,null,null,null,null,null,null,"Chimiste",null,1,1,null,1,1,null,0,0,0,0,0,0,5,8,5]
[84,{"$f":"IF(AND(C86>5,D87=\"Alchimiste\",B86<>0),AG87,0)","v":0},null,null,null,null,null,null,null,null,null,null,null,null,null,null,null,null,null,null,null,null,null,null,null,null,null,null,null,null,null,null,"Alchimiste",null,1,1,null,1,1,null,0,0,0,0,0,0,5,8,6]
[85,{"$f":"IF(AND(B28<>0,B37<>0,C28>5,C37>5,D88=\"Ménestrel\"),AG88,0)","v":0},null,null,null,null,null,null,null,null,null,null,null,null,null,null,null,null,null,null,null,null,null,null,null,null,null,null,null,null,null,null,"Ménestrel",null,null,1,1,1,1,null,0,0,0,0,0,0,4,6,8]
[86,{"$f":"IF(AND(C88>5,D89=\"Virtuose\",B88<>0),AG89,0)","v":0},null,null,null,null,null,null,null,null,null,null,null,null,null,null,null,null,null,null,null,null,null,null,null,null,null,null,null,null,null,null,"Virtuose",null,null,1,1,1,1,null,0,0,0,0,0,0,5,6,8]
[87,{"$f":"IF(AND(B41<>0,C48>5,C41>5,D90=\"Nécromancien\"),AG90,0)","v":0},null,null,null,null,null,null,null,null,null,null,null,null,null,null,null,null,null,null,null,null,null,null,null,null,null,null,null,null,null,null,"Nécromancien",null,1,1,null,1,1,null,0,0,0,0,0,0,4,7,7]
[88,{"$f":"IF(AND(C90>5,D91=\"Démoniste\",B90<>0),AG91,0)","v":0},null,null,null,null,null,null,null,null,null,null,null,null,null,null,null,null,null,null,null,null,null,null,null,null,null,null,null,null,null,null,"Démoniste",null,1,1,null,1,1,null,0,0,0,0,0,0,4,7,8]
[89,{"$f":"IF(AND(C18>5,B44<>0,C44>5,D92=\"Thérapeute\"),AG92,0)","v":0},null,null,null,null,null,null,null,null,null,null,null,null,null,null,null,null,null,null,null,null,null,null,null,null,null,null,null,null,null,null,"Thérapeute",null,1,null,null,1,1,null,0,0,0,0,0,0,4,8,6]
[90,{"$f":"IF(AND(C92>5,D93=\"Docteur\",B92<>0),AG93,0)","v":0},null,null,null,null,null,null,null,null,null,null,null,null,null,null,null,null,null,null,null,null,null,null,null,null,null,null,null,null,null,null,"Docteur",null,1,null,null,1,1,null,0,0,0,0,0,0,4,9,6]
[91,{"$f":"IF(AND(B38<>0,C39>5,C38>5,D94=\"Ensorceleur\"),AG94,0)","v":0},null,null,null,null,null,null,null,null,null,null,null,null,null,null,null,null,null,null,null,null,null,null,null,null,null,null,null,null,null,null,"Ensorceleur",null,null,1,1,1,1,null,0,0,0,0,0,0,3,7,8]
[92,{"$f":"IF(AND(C94>5,D95=\"Shaman\",B94<>0),AG95,0)","v":0},null,null,null,null,null,null,null,null,null,null,null,null,null,null,null,null,null,null,null,null,null,null,null,null,null,null,null,null,null,null,"Shaman",null,null,1,1,1,1,null,0,0,0,0,0,0,3,8,8]
[93,{"$f":"IF(AND(C27>5,B47<>0,C47>5,D96=\"Devin\"),AG96,0)","v":0},null,null,null,null,null,null,null,null,null,null,null,null,null,null,null,null,null,null,null,null,null,null,null,null,null,null,null,null,null,null,"Devin",null,null,1,1,1,1,null,0,0,0,0,0,0,3,8,7]
[94,{"$f":"IF(AND(C96>5,D97=\"Prophète\",B96<>0),AG97,0)","v":0},null,null,null,null,null,null,null,null,null,null,null,null,null,null,null,null,null,null,null,null,null,null,null,null,null,null,null,null,null,null,"Prophète",null,null,1,1,1,1,null,0,0,0,0,0,0,4,8,7]
[95,{"$f":"IF(AND(C45>5,B50<>0,C50>5,D98=\"Enchanteur\"),AG98,0)","v":0},null,null,null,null,null,null,null,null,null,null,null,null,null,null,null,null,null,null,null,null,null,null,null,null,null,null,null,null,null,null,"Enchanteur",null,1,null,null,1,1,null,0,0,0,0,0,0,3,9,6]
[96,{"$f":"IF(AND(C98>5,D99=\"Magus\",B98<>0),AG99,0)","v":0},null,null,null,null,null,null,null,null,null,null,null,null,null,null,null,null,null,null,null,null,null,null,null,null,null,null,null,null,null,null,"Magus",null,1,null,null,1,1,null,0,0,0,0,0,0,3,9,7]
[]
[97,{"$f":"IF(AND(C64>5,C53>5,D101=\"Champion\",B53<>0,B64<>0),AG101,0)","v":0},null,null,null,null,null,null,null,null,null,null,null,null,null,null,null,null,null,null,null,null,null,null,null,null,null,null,null,null,null,null,"Champion",1,1,1,1,null,1,null,{"$f":"IF(B101<>0,AH101*C101,0)","v":0},{"$f":"IF(B101<>0,AI101*C101,0)","v":0},{"$f":"IF(B101<>0,AJ101*C101,0)","v":0},{"$f":"IF(B101<>0,AK101*C101,0)","v":0},{"$f":"IF(B101<>0,AL101*C101,0)","v":0},{"$f":"IF(B101<>0,AM101*C101,0)","v":0},9,3,8]
[98,{"$f":"IF(AND(C55>5,C56>5,D102=\"Seigneur de Guerre\",B55<>0,B56<>0),AG102,0)","v":0},null,null,null,null,null,null,null,null,null,null,null,null,null,null,null,null,null,null,null,null,null,null,null,null,null,null,null,null,null,null,"Seigneur de Guerre",1,null,1,1,1,1,null,0,0,0,0,0,0,9,4,7]
[99,{"$f":"IF(AND(C67>5,C78>5,D103=\"Tyran\",B67<>0,B78<>0),AG103,0)","v":0},null,null,null,null,null,null,null,null,null,null,null,null,null,null,null,null,null,null,null,null,null,null,null,null,null,null,null,null,null,null,"Tyran",1,1,1,1,null,1,null,0,0,0,0,0,0,9,5,6]
[100,{"$f":"IF(AND(C52>5,C59>5,D104=\"Saint\",B52<>0,B59<>0),AG104,0)","v":0},null,null,null,null,null,null,null,null,null,null,null,null,null,null,null,null,null,null,null,null,null,null,null,null,null,null,null,null,null,null,"Saint",1,null,1,1,1,1,null,0,0,0,0,0,0,9,6,5]
[101,{"$f":"IF(AND(C54>5,C65>5,D105=\"Spécialiste\",B54<>0,B65<>0),AG105,0)","v":0},null,null,null,null,null,null,null,null,null,null,null,null,null,null,null,null,null,null,null,null,null,null,null,null,null,null,null,null,null,null,"Spécialiste",1,1,1,null,1,1,null,0,0,0,0,0,0,8,4,8]
[102,{"$f":"IF(AND(C62>5,C61>5,D106=\"Justicier\",B62<>0,B61<>0),AG106,0)","v":0},null,null,null,null,null,null,null,null,null,null,null,null,null,null,null,null,null,null,null,null,null,null,null,null,null,null,null,null,null,null,"Justicier",1,1,1,1,null,1,null,0,0,0,0,0,0,8,5,7]
[103,{"$f":"IF(AND(C66>5,C71>5,D107=\"Amiral\",B66<>0,B71<>0),AG107,0)","v":0},null,null,null,null,null,null,null,null,null,null,null,null,null,null,null,null,null,null,null,null,null,null,null,null,null,null,null,null,null,null,"Amiral",1,1,null,1,1,1,null,0,0,0,0,0,0,8,6,6]
[104,{"$f":"IF(AND(C57>5,C70>5,D108=\"Général\",B57<>0,B70<>0),AG108,0)","v":0},null,null,null,null,null,null,null,null,null,null,null,null,null,null,null,null,null,null,null,null,null,null,null,null,null,null,null,null,null,null,"Général",1,null,1,1,1,1,null,0,0,0,0,0,0,8,7,5]
[105,{"$f":"IF(AND(C60>5,C79>5,D109=\"Samourai\",B60<>0,B79<>0),AG109,0)","v":0},null,null,null,null,null,null,null,null,null,null,null,null,null,null,null,null,null,null,null,null,null,null,null,null,null,null,null,null,null,null,"Samourai",1,1,1,1,null,1,null,0,0,0,0,0,0,7,4,9]
[106,{"$f":"IF(AND(C68>5,C73>5,D110=\"Tireur d'Élite\",B68<>0,B73<>0),AG110,0)","v":0},null,null,null,null,null,null,null,null,null,null,null,null,null,null,null,null,null,null,null,null,null,null,null,null,null,null,null,null,null,null,"Tireur d'Élite",1,1,1,1,null,1,null,0,0,0,0,0,0,7,5,8]
[107,{"$f":"IF(AND(C63>5,C86>5,D111=\"Dragonnier\",B63<>0,B86<>0),AG111,0)","v":0},null,null,null,null,null,null,null,null,null,null,null,null,null,null,null,null,null,null,null,null,null,null,null,null,null,null,null,null,null,null,"Dragonnier",1,1,1,null,1,1,null,0,0,0,0,0,0,7,6,7]
[108,{"$f":"IF(AND(C58>5,C93>5,D112=\"Prodige\",B58<>0,B93<>0),AG112,0)","v":0},null,null,null,null,null,null,null,null,null,null,null,null,null,null,null,null,null,null,null,null,null,null,null,null,null,null,null,null,null,null,"Prodige",1,1,null,1,1,1,null,0,0,0,0,0,0,7,8,5]
[109,{"$f":"IF(AND(C81>5,C82>5,D113=\"Philosophe\",B81<>0,B82<>0),AG113,0)","v":0},null,null,null,null,null,null,null,null,null,null,null,null,null,null,null,null,null,null,null,null,null,null,null,null,null,null,null,null,null,null,"Philosophe",null,1,1,1,1,1,null,0,0,0,0,0,0,6,5,9]
[110,{"$f":"IF(AND(C83>5,C92>5,D114=\"\",B83<>0,B92<>0),AG114,0)","v":0},null,null,null,null,null,null,null,null,null,null,null,null,null,null,null,null,null,null,null,null,null,null,null,null,null,null,null,null,null,null,"Magistrat",null,1,1,1,1,1,null,0,0,0,0,0,0,6,6,8]
[111,{"$f":"IF(AND(C72>5,C87>5,D115=\"Illuminé\",B72<>0,B87<>0),AG115,0)","v":0},null,null,null,null,null,null,null,null,null,null,null,null,null,null,null,null,null,null,null,null,null,null,null,null,null,null,null,null,null,null,"Illuminé",1,1,null,1,1,1,null,0,0,0,0,0,0,6,7,7]
[112,{"$f":"IF(AND(C75>5,C88>5,D116=\"Cardinal\",B88<>0,B75<>0),AG116,0)","v":0},null,null,null,null,null,null,null,null,null,null,null,null,null,null,null,null,null,null,null,null,null,null,null,null,null,null,null,null,null,null,"Cardinal",1,null,1,1,1,1,null,0,0,0,0,0,0,6,8,6]
[113,{"$f":"IF(AND(C77>5,C96>5,D117=\"Sage\",B77<>0,B96<>0),AG117,0)","v":0},null,null,null,null,null,null,null,null,null,null,null,null,null,null,null,null,null,null,null,null,null,null,null,null,null,null,null,null,null,null,"Sage",null,1,1,1,1,1,null,0,0,0,0,0,0,6,9,5]
[114,{"$f":"IF(AND(C84>5,C69>5,D118=\"Tacticien\",B84<>0,B69<>0),AG118,0)","v":0},null,null,null,null,null,null,null,null,null,null,null,null,null,null,null,null,null,null,null,null,null,null,null,null,null,null,null,null,null,null,"Tacticien",1,1,1,null,1,1,null,0,0,0,0,0,0,5,6,9]
[115,{"$f":"IF(AND(C98>5,C85>5,D119=\"Savant\",B98<>0,B85<>0),AG119,0)","v":0},null,null,null,null,null,null,null,null,null,null,null,null,null,null,null,null,null,null,null,null,null,null,null,null,null,null,null,null,null,null,"Savant",1,1,1,null,1,1,null,0,0,0,0,0,0,5,7,8]
[116,{"$f":"IF(AND(C89>5,C90>5,D120=\"Oracle\",B90<>0,B89<>0),AG120,0)","v":0},null,null,null,null,null,null,null,null,null,null,null,null,null,null,null,null,null,null,null,null,null,null,null,null,null,null,null,null,null,null,"Oracle",1,1,null,1,1,1,null,0,0,0,0,0,0,5,8,7]
[117,{"$f":"IF(AND(C95>5,C92>5,D121=\"Mystique\",B92<>0,B95<>0),AG121,0)","v":0},null,null,null,null,null,null,null,null,null,null,null,null,null,null,null,null,null,null,null,null,null,null,null,null,null,null,null,null,null,null,"Mystique",1,null,1,1,1,1,null,0,0,0,0,0,0,5,9,6]
[118,{"$f":"IF(AND(C80>5,C97>5,D122=\"Visionnaire\",B80<>0,B97<>0),AG122,0)","v":0},null,null,null,null,null,null,null,null,null,null,null,null,null,null,null,null,null,null,null,null,null,null,null,null,null,null,null,null,null,null,"Visionnaire",null,1,1,1,1,1,null,0,0,0,0,0,0,4,8,8]
[119,{"$f":"IF(AND(C91>5,C74>5,D123=\"Infernaliste\",B91<>0,B74<>0),AG123,0)","v":0},null,null,null,null,null,null,null,null,null,null,null,null,null,null,null,null,null,null,null,null,null,null,null,null,null,null,null,null,null,null,"Infernaliste",1,1,1,null,1,1,null,0,0,0,0,0,0,4,9,7]
[120,{"$f":"IF(AND(C94>5,C99>5,D124=\"Élémentaliste\",B94<>0,B99<>0),AG124,0)","v":0},null,null,null,null,null,null,null,null,null,null,null,null,null,null,null,null,null,null,null,null,null,null,null,null,null,null,null,null,null,null,"Élémentaliste",null,1,1,1,1,1,null,0,0,0,0,0,0,3,9,8]
[]
[121,{"$f":"IF(AND(C101>5,C102>5,D126=\"Conquérant\",B101<>0,B102<>0),AG126,0)","v":0},null,null,null,null,null,null,null,null,null,null,null,null,null,null,null,null,null,null,null,null,null,null,null,null,null,null,null,null,null,null,"Conquérant",1,1,1,1,1,1,null,{"$f":"IF(B126<>0,AH126*C126,0)","v":0},{"$f":"IF(B126<>0,AI126*C126,0)","v":0},{"$f":"IF(B126<>0,AJ126*C126,0)","v":0},{"$f":"IF(B126<>0,AK126*C126,0)","v":0},{"$f":"IF(B126<>0,AL126*C126,0)","v":0},{"$f":"IF(B126<>0,AM126*C126,0)","v":0},9,4,8]
[122,{"$f":"IF(AND(C106>5,C105>5,D127=\"Preux\",B106<>0,B105<>0),AG127,0)","v":0},null,null,null,null,null,null,null,null,null,null,null,null,null,null,null,null,null,null,null,null,null,null,null,null,null,null,null,null,null,null,"Preux",1,1,1,1,1,1,null,0,0,0,0,0,0,9,6,6]
[123,{"$f":"IF(AND(C104>5,C116>5,D128=\"Ange\",B116<>0,B104<>0),AG128,0)","v":0},null,null,null,null,null,null,null,null,null,null,null,null,null,null,null,null,null,null,null,null,null,null,null,null,null,null,null,null,null,null,"Ange",1,1,1,1,1,1,null,0,0,0,0,0,0,9,8,4]
[124,{"$f":"IF(AND(C107>5,C109>5,D129=\"Dragon\",B107<>0,B109<>0),AG129,0)","v":0},null,null,null,null,null,null,null,null,null,null,null,null,null,null,null,null,null,null,null,null,null,null,null,null,null,null,null,null,null,null,"Dragon",1,1,1,1,1,1,null,0,0,0,0,0,0,8,4,9]
[125,{"$f":"IF(AND(C103>5,C123>5,D130=\"Démon\",B123<>0,B103<>0),AG130,0)","v":0},null,null,null,null,null,null,null,null,null,null,null,null,null,null,null,null,null,null,null,null,null,null,null,null,null,null,null,null,null,null,"Démon",1,1,1,1,1,1,null,0,0,0,0,0,0,8,6,7]
[126,{"$f":"IF(AND(C108>5,C114>5,D131=\"Roi\",B108<>0,B114<>0),AG131,0)","v":0},null,null,null,null,null,null,null,null,null,null,null,null,null,null,null,null,null,null,null,null,null,null,null,null,null,null,null,null,null,null,"Roi",1,1,1,1,1,1,null,0,0,0,0,0,0,8,8,5]
[127,{"$f":"IF(AND(C110>5,C111>5,D132=\"As\",B110<>0,B111<>0),AG132,0)","v":0},null,null,null,null,null,null,null,null,null,null,null,null,null,null,null,null,null,null,null,null,null,null,null,null,null,null,null,null,null,null,"As",1,1,1,1,1,1,null,0,0,0,0,0,0,7,6,8]
[128,{"$f":"IF(AND(C121>5,C112>5,D133=\"Messie\",B112<>0,B121<>0),AG133,0)","v":0},null,null,null,null,null,null,null,null,null,null,null,null,null,null,null,null,null,null,null,null,null,null,null,null,null,null,null,null,null,null,"Messie",1,1,1,1,1,1,null,0,0,0,0,0,0,7,9,5]
[129,{"$f":"IF(AND(C113>5,C120>5,D134=\"Lama\",B113<>0,B120<>0),AG134,0)","v":0},null,null,null,null,null,null,null,null,null,null,null,null,null,null,null,null,null,null,null,null,null,null,null,null,null,null,null,null,null,null,"Lama",1,1,1,1,1,1,null,0,0,0,0,0,0,6,6,9]
[130,{"$f":"IF(AND(C115>5,C119>5,D135=\"Génie\",B115<>0,B119<>0),AG135,0)","v":0},null,null,null,null,null,null,null,null,null,null,null,null,null,null,null,null,null,null,null,null,null,null,null,null,null,null,null,null,null,null,"Génie",1,1,1,1,1,1,null,0,0,0,0,0,0,6,9,6]
[131,{"$f":"IF(AND(C117>5,C118>5,D136=\"Haut Stratège\",B117<>0,B118<>0),AG136,0)","v":0},null,null,null,null,null,null,null,null,null,null,null,null,null,null,null,null,null,null,null,null,null,null,null,null,null,null,null,null,null,null,"Haut Stratège",1,1,1,1,1,1,null,0,0,0,0,0,0,5,7,9]
[132,{"$f":"IF(AND(C122>5,C124>5,D137=\"Pur Mage\",B122<>0,B124<>0),AG137,0)","v":0},null,null,null,null,null,null,null,null,null,null,null,null,null,null,null,null,null,null,null,null,null,null,null,null,null,null,null,null,null,null,"Pur Mage",1,1,1,1,1,1,null,0,0,0,0,0,0,4,9,8]
[]
[null,null,{"$f":"SUM(C3:C130)","v":0},null,null,null,null,null,null,null,null,null,null,null,null,null,null,null,null,null,null,null,null,null,null,null,null,null,null,null,null,null,null,null,null,null,null,null,null,null,{"$f":"SUM(AO3:AO137)","v":0},{"$f":"SUM(AP3:AP137)","v":0},0,0,0,0]

{"sheet":"Équipement-Titre","index":3,"n_rows":174,"n_cols":26,"rows_kept":174,"cut":false,"hidden":true,"merged":[]}
["Titre","Or",null,"Arme","Portée","Attaque","Critique","Maladresse","Face","Flanc","Dos","Type",null,"Bouclier","Physique","Champ d'action","Face","Flanc","Dos"]
[]
["Adjudant",6,null,"Acier des anges",2,29,300,10,5,3,3,"M / P",null,"Aucun",0,0,0,0,0]
["Amiral",50,null,"Âmes Trahies",1,15,250,9,2,2,2,"M / P",null,"Bouclier improvisé",4,-3,8,10,"-"]
["Archevêque",25,null,"Ange gardien",11,12,200,11,5,4,4,"T / P",null,"Bouclier Tour",7,-4,6,7,9]
["Cadet",2,null,"Arbalète à répétition",7,19,350,10,4,4,4,"T / P",null,"Défense de Richard",6,-3,5,6,9]
["Capitaine",25,null,"Arbalète de concours",7,6,250,10,5,5,5,"T / P",null,"Dragonien",5,-2,5,7,10]
["Caporal",6,null,"Arbalète de siège",8,12,300,10,5,5,5,"T / P",null,"Écu",4,-2,7,8,9]
["Cardinal",40,null,"Arbalète improvisée",5,2,200,10,7,7,6,"T / P",null,"Écu Sormand",6,-3,7,7,8]
["Clerc",7,null,"Arbalète légère",6,3,250,10,7,6,6,"T / P",null,"Garde de Valiant",6,-3,4,6,8]
["Colonel",35,null,"Arbalète lourde",7,7,300,10,6,6,5,"T / P",null,"Grand bouclier",6,-4,7,8,10]
["Commandant",25,null,"Arbalète militaire",6,4,250,10,7,6,6,"T / P",null,"Pavois noble",6,-3,5,8,"-"]
["Commodore",35,null,"Arc ancien",9,9,200,11,6,5,5,"T / P",null,"Petit bouclier",3,-1,8,10,10]
["Diacre",3,null,"Arc court",7,1,150,11,8,6,6,"T / P",null,"Rempart du mage",3,-1,7,9,9]
["Évêque",15,null,"Arc des cieux",11,16,250,11,4,4,3,"T / P",null,"Rondache",5,-2,8,9,9]
["Général",50,null,"Arc franc",8,6,200,11,6,5,4,"T / P",null,"Saint-Norec",7,-4,4,6,9]
["Junior",1,null,"Arc long",9,3,150,11,7,5,5,"T / P",null,"Targe",5,-2,6,9,"-"]
["Lieutenant",12,null,"Arc Primitif",4,0,150,12,9,8,7,"T / P",null,"Valarius",4,-1,5,7,7]
["Lieutenant Major",14,null,"Arme du juste",1,9,150,10,5,4,4,"M / T"]
["Major",17,null,"Arquebuse",5,16,200,12,6,6,5,"T / F",null,"Armures","Perçant","Tranchant","Contondant","Feu","Sortilège","Encombrement mouvement","Encombrement compétence","Magie"]
["Marin 1ère Classe",5,null,"Arquebuse double",5,22,200,12,6,5,5,"T / F"]
["Marin 2è Classe",4,null,"Aucune",1,0,150,9,8,7,6,"M / C",null,"Armure de cuir complète",null,null,25,null,25,null,null,1.2]
["Marin 3è Classe",3,null,"Barmerak",1,36,250,11,5,4,3,"M / T",null,"Armure de cuir renforcée",25,null,25,null,25,1,-10,0.9]
["Matelot",2,null,"Bâton de bois",1,0,null,12,9,8,7,"M / C",null,"Armure de fonte",25,25,null,25,null,4,-40,0.6]
["Missionnaire",4,null,"Bâton de marche",1,3,150,9,7,7,7,"M / C",null,"Armure de peau animal",25,25,null,null,null,2,-20,0.9]
["Moine",5,null,"Bâton de puissance",1,7,150,9,6,6,6,"M / C",null,"Armure de plate complète",75,50,50,25,null,4,-40,0.6]
["Prêtre",10,null,"Bola",3,0,null,12,8,8,7,"T / C",null,"Armure en écaille",25,50,25,null,null,2,-20,0.9]
["Repris de justice",0,null,"Cane de combat",2,6,150,9,6,5,4,"M / C",null,"Armure feuilletée",25,25,50,25,25,1,-10,1]
["Sergent",8,null,"Caracheuse de venin",4,null,null,10,5,5,3,"T / P",null,"Aucune",null,null,null,null,null,null,null,1.5]
["Sergent Major",10,null,"Charge d'éléphant",2,11,200,10,6,5,5,"M / P",null,"Blouse de magicien",null,null,25,null,50,1,-10,1.6]
["Servant de messe",1,null,"Cimeterre",1,2,200,11,7,6,4,"M / T",null,"Brigantine",25,25,50,null,null,null,null,1]
["Soldat 1ère Classe",5,null,"Cimeterre géant",1,5,250,11,6,5,4,"M / T",null,"Brigantine Balgarde",50,25,50,null,25,1,-10,1.3]
["Soldat 2è Classe",4,null,"Cobra",1,9,250,9,4,4,2,"M / P",null,"Caban",null,null,null,25,25,2,-20,1.3]
["Soldat 3è Classe",3,null,"Cœur de Valiant",1,18,200,10,3,3,2,"M / T",null,"Cape de voyage",null,null,null,null,25,1,-10,1.5]
[null,null,null,"Colère du Créateur",1,20,200,10,3,2,2,"M / T",null,"Cape des ombres",25,null,25,null,50,1,-10,1.6]
[0,null,0,"Coupe-gorge",1,12,250,9,3,3,2,"M / P",null,"Carapace animale",25,null,25,null,null,2,-20,0.8]
[1,null,1,"Courage de Berrouve",1,14,250,11,5,4,4,"M / T",null,"Carapace Harlog (Homme)",25,25,25,25,25,4,-40,0.8]
[2,null,"1d3","Couteau de chasse",1,3,200,9,6,5,4,"M / P",null,"Carapace lourde",25,25,25,25,null,4,-40,0.6]
[3,null,"1d5","Couteau de pierre",1,0,150,12,9,8,7,"M / P",null,"Cavalerie légère",50,25,25,25,null,2,-20,1]
[4,null,"2d3","Couteau de poche",1,0,150,9,8,7,6,"M / P",null,"Cavalerie lourde",50,50,50,25,null,3,-30,0.8]
[5,null,"2d4","Cri des agneaux",1,18,350,12,5,3,3,"M / C",null,"Chemise de maille royale",50,25,50,null,null,1,-10,0.9]
[6,null,"2d5","Dague de jet",4,1,150,9,7,6,5,"T / P",null,"Cœur de lion",75,75,50,50,25,3,-30,0.7]
[7,null,"2d6","Dague militaire",1,2,150,9,7,6,4,"M / P",null,"Cotte de maille",25,25,null,null,null,1,-10,1]
[8,null,"3d4","Dague précise",4,4,150,9,6,5,3,"T / P",null,"Cuirasse",25,null,25,null,null,1,-10,1]
[9,null,"2d8","Dernière mesure",1,6,200,9,5,4,3,"M / P",null,"Cuirasse de plate",50,50,25,25,null,2,-20,0.8]
[10,null,"3d6","Éclair noir",2,28,200,11,5,4,4,"M / T",null,"Cuirasse des magistrats",25,25,25,null,25,null,null,1.3]
[11,null,"2d10","Épée à deux mains",1,7,150,10,6,6,5,"M / T",null,"Défense Walkyrie (Femme)",50,25,25,50,null,2,-20,0.8]
[12,null,"5d4","Épée barbare",1,7,150,10,6,4,4,"M / T",null,"Demi-armure de plate",50,50,25,25,null,3,-30,0.7]
[13,null,"2d12","Épée bâtarde",1,5,150,10,7,6,6,"M / T",null,"Étoile du nord",50,25,50,null,50,null,null,1.1000000000000001]
[14,null,"4d6","Épée courte",1,2,150,10,6,5,4,"M / T",null,"Grand Tanius",null,25,25,50,50,2,-20,1.3]
[15,null,"6d4","Épée de bois à deux mains",1,2,null,12,8,8,7,"M / T",null,"Habit de grand froids",25,null,null,50,25,2,-20,1.2]
[16,null,"3d10","Épée de bois à une main",1,0,null,12,8,8,7,"M / T",null,"Habit du Magus",null,null,null,25,75,1,-10,1.7]
[17,null,"5d6","Épée du conquérant",1,24,200,10,5,4,3,"M / T",null,"Harnois de conquête",50,75,25,25,25,3,-30,0.8]
[18,null,"4d8","Épée longue",1,3,150,10,5,5,4,"M / T",null,"Harnois partiel",25,50,null,25,null,3,-30,0.7]
[19,null,"3d12","Espadon",1,11,150,10,6,5,5,"M / T",null,"Haubert de maille",25,25,25,null,null,3,-30,0.8]
[20,null,"8d4","Feu de l'enfer",6,38,200,12,5,4,4,"T / F",null,"Larmes de métal",50,50,50,50,25,2,-20,1]
[21,null,"6d6","Flamberge",1,27,250,10,5,3,3,"M / T",null,"Manteau",null,null,null,null,25,1,-10,1.5]
[22,null,"4d10","Fléau double",1,6,300,12,7,5,5,"M / C",null,"Manteau renforcé",null,25,null,null,null,1,-10,1]
[23,null,"5d8","Fléau improvisé",1,1,250,12,8,7,6,"M / C",null,"Paletot de cuir",null,25,25,25,null,2,-20,1.4]
[24,null,"7d6","Fléau simple",1,3,250,12,8,6,5,"M / C",null,"Panoplie du Ninja",25,25,25,25,25,null,null,1.1000000000000001]
[25,null,"10d4","Fléau triple",1,9,300,12,6,5,4,"M / C",null,"Pèlerine",null,25,25,25,null,2,-20,1.4]
[26,null,"4d12","Fleuret",1,11,200,10,5,4,4,"M / T",null,"Plastron métallique",50,25,null,null,null,3,-30,0.8]
[27,null,"6d8","Foi du cardinal",1,20,150,10,4,4,4,"M / C",null,"Plate de combat",50,50,25,25,25,3,-30,0.8]
[28,null,"5d10","Force de la nature",1,12,150,9,6,6,6,"M / C",null,"Redingote",null,null,25,25,null,null,null,1.3]
[29,null,"8d6","Force de Sorgar",1,21,250,10,4,3,2,"M / T",null,"Reine Naha (Femme)",null,null,25,25,75,1,-10,1.9]
[30,null,"7d8","Force du gladiateur",1,26,250,11,5,5,4,"M / T",null,"Remayal",50,50,50,25,25,2,-20,0.9]
[31,null,"9d6","Forge des enfers",1,26,200,10,4,4,4,"M / C",null,"Robe d'apprenti",null,null,null,null,50,1,-10,1.5]
[32,null,"5d12","Francisque",2,14,200,11,6,5,5,"M / T",null,"Robe de feu",null,25,null,50,50,2,-20,1.8]
[33,null,"6d10","Furie du barbare",1,24,250,11,4,4,3,"M / T",null,"Robe renforcée",null,25,25,25,25,2,-20,1.5]
[34,null,"10d6","Gardien de la nature",5,15,250,10,5,4,3,"T / P",null,"Roi Damacleus (Homme)",null,25,null,25,75,2,-20,2]
[35,44,"2d3*10","Gardienne",2,26,250,10,4,4,4,"M / P",null,"Saint protecteur",25,25,null,75,50,1,-10,1.5]
[45,54,"2d4*10","Glaive",1,5,200,10,6,5,4,"M / T",null,"Sarreau d'érudit",null,null,null,25,50,1,-10,1.5]
[55,64,"2d5*10","Glaive nordique",1,18,250,10,5,3,2,"M / T",null,"Testament Duloir",75,75,25,50,25,4,-40,0.6]
[65,74,"2d6*10","Gourdin",1,2,150,9,7,6,4,"M / C",null,"Toge de paysan",null,null,25,null,null,1,-10,1.1000000000000001]
[75,84,"3d4*10","Grande hache",1,5,150,11,8,7,6,"M / T",null,"Toge d'espion",null,25,25,25,25,null,null,1.3]
[85,94,"2d8*10","Grande masse",1,5,150,10,7,7,7,"M / C",null,"Tunique de dignitaire",25,null,null,50,50,1,-10,1.5]
[95,99,"4d4*10","Grandius",3,15,200,11,5,4,3,"T / T",null,"Tunique de ferme",null,null,null,25,null,1,-10,1.3]
[100,109,"3d6*10","Hache de bataille",1,4,150,11,6,6,5,"M / T",null,"Tunique religieuse",null,null,25,null,50,1,-10,1.5]
[110,119,"2d10*10","Hache de jet",3,2,150,11,7,7,6,"T / T",null,"Tunique royale",25,null,50,50,50,2,-20,1.4]
[120,129,"5d4*10","Hache double",1,10,200,11,6,4,4,"M / T",null,"Veste de cuir",25,null,null,null,null,null,null,1.2]
[130,139,"2d12*10","Hache géante",1,12,150,11,7,5,5,"M / T"]
[140,149,"4d6*10","Hache indigène",1,5,250,11,7,6,4,"M / T",null,"Qualité","Type","% augmentation de dégat","Portée","Critique","Face","Flanc","Dos","Physique","Champ d'action","Mouvement","Compétence","Magie"]
[150,159,"6d4*10","Hache Kryline",1,19,200,11,5,4,3,"M / T"]
[160,169,"3d10*10","Hache sauvage",4,8,150,11,6,4,4,"T / T",null,"Pointu","M / P",1.1000000000000001]
[170,179,"5d6*10","Hachette",1,1,150,11,7,6,6,"M / T",null,"Mordant","M / P",1.2]
[180,189,"4d8*10","Hallebarde",2,7,150,11,8,6,5,"M / T",null,"Acéré","M / P",1.33]
[190,199,"3d12*10","Héritage de Gaïa",1,16,150,9,5,5,5,"M / C",null,"Aiguisé","M / T",1.1000000000000001]
[200,209,"8d4*10","Hokasai",2,7,250,12,7,6,5,"M / C",null,"Affûté","M / T",1.2]
[210,219,"6d6*10","Honneur des Valmont",1,15,150,10,3,3,3,"M / T",null,"Affilé","M / T",1.33]
[220,229,"4d10*10","Javeline",5,6,200,10,7,5,5,"T / P",null,"Alourdi","M / C",1.1000000000000001]
[230,239,"5d8*10","Javelot de bois",3,0,150,12,8,7,6,"T / P",null,"Empesé","M / C",1.2]
[240,249,"7d6*10","Javelot militaire",4,10,250,10,6,4,4,"T / P",null,"Chargé","M / C",1.33]
[250,259,"10d4*10","Javelot sacré",6,21,300,10,4,3,3,"T / P",null,"Stable","Tir",1.1000000000000001]
[260,269,"4d12*10","Joute du juste",2,20,250,10,5,3,3,"M / P",null,"Juste","Tir",1.2]
[270,279,"6d8*10","Katana",1,7,250,11,5,4,3,"M / T",null,"Précis","Tir",1.33]
[280,289,"5d10*10","Katana à deux mains",1,11,250,11,5,4,3,"M / T",null,"Surdimensionné","Tir",1,1]
[290,299,"8d6*10","Kurosa",1,28,300,11,3,3,2,"M / T",null,"Gigantesque","Tir",1,2]
[300,309,"7d8*10","Lame de cristal",1,14,200,10,5,4,3,"M / T",null,"Puissant",null,1,null,50]
[310,319,"9d6*10","Lame d'entraîenement",1,0,150,10,8,7,6,"M / T",null,"Dévastateur",null,1,null,100]
[320,329,"5d12*10","Lame du boureau",1,15,200,10,5,5,3,"M / T",null,"Balancé",null,1,null,null,null,null,1]
[330,339,"6d10*10","Lance ancienne",1,12,300,10,5,4,3,"M / P",null,"Équilibré",null,1,null,null,null,1,1]
[340,349,"10d6*10","Lance de bois à deux mains",2,1,150,12,9,8,7,"M / P",null,"Perfectionné",null,1,null,null,1]
[350,449,"2d3*100","Lance de bois à une main",1,0,150,12,10,8,7,"M / P",null,"Dégradé",null,1,null,null,-1,-1,-1]
[450,549,"2d4*100","Lance de cavalerie lourde",2,7,250,10,7,7,5,"M / P",null,"Faible",null,1]
[550,649,"2d5*100","Lance de ville",2,3,250,10,8,7,5,"M / P",null,"Allégé",null,1,null,null,null,null,null,-1,null,-1,10]
[650,749,"2d6*100","Lance d'entraînement",2,4,200,10,8,7,6,"M / P",null,"Optimisé",null,1,null,null,null,null,null,-2,null,-2,20]
[750,849,"3d4*100","Lance militaire",1,3,250,10,7,5,5,"M / P",null,"Commode",null,1,null,null,null,null,null,null,-1]
[850,949,"2d8*100","Lance paysanne",1,1,250,10,8,7,6,"M / P",null,"Maniable",null,1,null,null,null,null,null,null,-2]
[950,999,"4d4*100","Lance pierre",3,0,150,12,10,8,7,"T / C",null,"Trempé",null,1]
[1000,1099,"3d6*100","Lance Valmont",2,16,200,10,6,4,3,"M / P",null,"Solidifié",null,1]
[1100,1199,"2d10*100","Légende de Jemai",1,26,150,9,4,4,4,"M / C",null,"Fortifié",null,1]
[1200,1299,"5d4*100","Long dard",4,2,200,10,7,6,6,"T / P",null,"Raffiné",null,1]
[1300,1399,"2d12*100","Loup Noir",1,15,300,11,3,3,2,"M / T",null,"Brisé",null,0]
[1400,1499,"4d6*100","Marche de templiers",2,14,350,12,5,4,3,"M / C",null,"Fragile",null,1]
[1500,1599,"6d4*100","Marteau civil",1,2,150,10,7,7,7,"M / C",null,"Occulte",null,1,null,null,null,null,null,null,null,null,null,0.1]
[1600,1699,"3d10*100","Marteau de guerre",1,11,150,10,6,6,6,"M / C",null,"Enchanté",null,1,null,null,null,null,null,null,null,null,null,0.2]
[1700,1799,"5d6*100","Marteau géant",1,10,150,10,7,7,7,"M / C"]
[1800,1899,"4d8*100","Masse colossale",1,16,150,10,6,6,6,"M / C",null,"Monture"]
[1900,1999,"3d12*100","Masse d'armes",1,8,200,10,6,6,6,"M / C"]
[2000,2099,"8d4*100","Masse de construction",1,6,150,10,8,8,8,"M / C",null,"Âne",20,4,1,3,4]
[2100,2199,"6d6*100","Masse Duloir",1,15,200,10,5,5,5,"M / C",null,"Bœuf",70,7,1,2,3]
[2200,2299,"4d10*100","Masse Gerrol",1,31,150,10,5,5,5,"M / C",null,"Cheval de trait",70,7,2,4,6]
[2300,2399,"5d8*100","Matraque impériale",1,9,150,9,5,4,3,"M / C",null,"Chien du nord",15,3,2,5,6]
[2400,2499,"7d6*100","Mousquet",5,11,200,12,7,6,6,"T / F",null,"Coursier",50,4,2,7,10]
[2500,2599,"10d4*100","Mousquet Savie",6,30,200,12,5,5,4,"T / F",null,"Coursier impérial",150,6,2,8,12]
[2300,2699,"4d12*100","Mousqueton",4,5,200,12,8,7,6,"T / F",null,"Destrier",160,7,3,5,7]
[2700,2799,"6d8*100","Mousqueton royal",4,22,200,12,5,4,4,"T / F",null,"Destrier impérial",240,7,3,7,9]
[2800,2899,"5d10*100","Murasame",1,16,300,11,5,3,3,"M / T",null,"Étalon",40,4,2,6,8]
[2900,2999,"8d6*100","Nohagan",4,20,200,11,4,4,3,"T / T",null,"Léopard / Panthère",30,3,2,6,7]
[3000,3099,"7d8*100","Pacificateur",4,12,200,12,6,6,5,"T / F",null,"Lignée sainte",320,8,4,7,10]
[3100,3199,"9d6*100","Perche des trois couches",2,14,150,9,5,3,3,"M / C",null,"Lion",100,6,4,6,7]
[3200,3299,"5d12*100","Pertuisane",2,15,250,10,6,4,4,"M / P",null,"Mulet",40,5,1,5,5]
[3300,3399,"6d10*100","Petite cane",1,0,150,9,8,7,6,"M / C",null,"Premier coursier",90,5,2,8,11]
[3400,3499,"10d6*100","Pilum",1,7,250,10,6,4,4,"M / P",null,"Pur-sang",100,6,2,6,8]
[null,null,null,"Pique",2,5,250,10,7,6,5,"M / P",null,"Tigre",60,5,3,7,8]
[null,null,null,"Pistolet de duelliste",4,17,200,12,5,5,5,"T / F"]
[null,null,null,"Plomb nordique",1,22,200,10,6,6,6,"M / C",null,"Carapaçons / Bardes"]
[null,null,null,"Pluie des ténèbres",7,15,300,10,4,3,3,"T / P"]
[null,null,null,"Pointe de l'aigle",6,11,300,10,5,4,4,"T / P",null,"Barde barbares",null,25,null,25]
[null,null,null,"Pourfendeuse",1,7,200,11,6,5,4,"M / T",null,"Barde de conquête",50,50,50,25]
[null,null,null,"Première phalange",1,16,250,10,4,4,2,"M / P",null,"Barde de plate",50,50,25]
[null,null,null,"Protectrice",2,21,300,10,6,4,3,"M / P",null,"Carapaçon d'Alençon",25,25,25,25,50]
[null,null,null,"Rapière",1,1,200,10,7,5,5,"M / T",null,"Carapaçon de cuir",null,25,25,null,25]
[null,null,null,"Roi cobra",5,null,null,10,4,3,2,"T / P",null,"Carapaçon de maille",25,25,25]
[null,null,null,"Royal Logia",1,21,300,10,4,3,2,"M / P",null,"Chanfrein de tissu",null,null,25]
[null,null,null,"Sabre barbare",1,2,200,11,7,6,5,"M / T",null,"Honneur des croisés",25,25,25,25]
[null,null,null,"Sabre commodore",1,11,250,11,4,3,3,"M / T",null,"Housse de maille",25,null,25]
[null,null,null,"Sabre de bois",1,0,null,12,9,8,6,"M / T",null,"Housse de plate",25,50,25]
[null,null,null,"Sabre de pirate",1,3,250,11,7,6,5,"M / T",null,"Housse de tissu",null,null,null,25]
[null,null,null,"Sabre roi orque",1,24,350,11,5,5,4,"M / T",null,"Housse en peau animale",null,25,null,null,25]
[null,null,null,"Sagesse du Créateur",1,20,150,9,5,5,5,"M / C",null,"Lussa Judicium",50,75,50,25]
[null,null,null,"Sangdragon",1,32,250,10,4,3,3,"M / T",null,"Marche des chevaliers",25,50,25,25,25]
[null,null,null,"Sarbacane de bambou",4,null,null,10,6,5,4,"T / P",null,"Ornement royal",25,25,25,50,50]
[null,null,null,"Sarbacane improvisée",2,null,null,12,9,8,7,"T / P",null,"Parure noble",null,25,25,50,25]
[null,null,null,"Sarbacane primitive",3,null,null,10,7,6,5,"T / P"]
[null,null,null,"Sceptre de combat Oys",1,17,150,9,4,3,2,"M / C"]
[null,null,null,"Souhait d'Odilia",1,12,150,10,4,4,3,"M / T"]
[null,null,null,"Tabrage",1,40,200,10,5,5,5,"M / C"]
[null,null,null,"Tanto",1,0,150,11,6,5,4,"M / T"]
[null,null,null,"Tomahawk",3,4,200,11,7,5,5,"T / T"]
[null,null,null,"Tonnerre bleu",8,25,350,10,4,3,3,"T / P"]
[null,null,null,"Tortionnaire",1,13,350,12,6,4,4,"M / C"]
[null,null,null,"Trident",2,10,300,10,7,5,4,"M / P"]
[null,null,null,"Tromblon ancien",5,6,200,12,8,7,6,"T / F"]
[null,null,null,"Tromblon moderne",4,8,200,12,7,6,6,"T / F"]
[null,null,null,"Tueuse de démon",12,20,250,11,4,3,2,"T / P"]
[null,null,null,"Tueuse de dragon",2,25,300,10,4,4,3,"M / P"]
[null,null,null,"Tueuse de géant",1,20,200,11,6,5,4,"M / T"]
[null,null,null,"Tueuse de monarque",5,null,null,10,4,4,3,"T / P"]
[null,null,null,"Tueuse de rois",5,11,250,9,4,3,2,"T / P"]
[null,null,null,"Vadia",1,19,200,10,5,5,4,"M / T"]
[null,null,null,"Vent du nord",5,7,200,9,5,4,3,"T / P"]
[null,null,null,"Wakazashi",1,5,200,11,6,5,3,"M / T"]
[null,null,null,"Zantesiu",1,19,300,11,3,2,2,"M / T"]